{"text_format":"1","workbook":"xlsx","n_sheets":12,"sheets":["Utilitaire","Accueil","Administration","Description","Détail des projets","GES","Adaptation","Indicateurs","Commentaires","Évaluation","Validation","Prochain Exercice-Commentaires"],"not_rendered":{"charts":0,"images":23,"macros":1,"external_links":1,"defined_names":548,"comments":5,"pivot_tables":0},"unopened":[],"bounds":{"document_bytes":16777216,"sheet_cells":100000,"rows_first":2000,"rows_last":500,"rows_between":2000,"halvings":0,"cell_chars":16384,"cell_head_chars":4096},"cells_cut":0,"cells_raw":0,"read":"whole","date_system":"1900"}

{"sheet":"Utilitaire","index":0,"n_rows":239,"n_cols":18,"rows_kept":239,"cut":false,"hidden":true,"merged":[[15,1,15,5],[15,8,15,9]]}
[]
[]
["A","Mot de passe:","!1320PACC","Fiche verrouillée:","Oui - diffusion en ligne"]
[null,"Fiche validée:","Oui","Fiche générée:","Générée"]
[null,"GES attendu:",null,"Est-ce que le pop-up \"validation\" s'affiche:","Générée","Date dernier exercice","2022-03-31"]
[null,"Feuille accueil complètement remplie:","Oui","Exercice de suivi:","2020-10-01","Date de l'exercice:","2022-09-30"]
[null,"Statut action:",{"$f":"Accueil!D58","v":"en cours"},null,null,"Année Financière:","2022-2023"]
[null,"Feuille Utilitaire visible:","Non","Titre des Onglets:","Plan pour une économie verte 2030"]
[null,"Dernière ligne de la zone de défilement de l'onglet détail des projets:",129]
[null,"nombre d'indicateurs approuvés:",0]
[null,"Secteur:","PMO","NoPmo",2]
[null,"Numéro de séquence de l'action:",4023.0205000000001,"Remplir la section Évaluation requis : ",{"$f":"IF(Utilitaire!C7=I21,\"Oui\",IF(C7=I23,\"Oui\",\"Non\"))","v":"Non"},"Première ligne masquée dans l'onglet Indicateurs : ",164]
[null,"Première ligne masquée dans l'onglet Description:",76,"Affiche onglet Évaluation:","Non","Première ligne masquée dans l'onglet Évaluation:",51]
[]
[null,"Listes Déroulantes"]
[null,"Onglet \"Détail des projets\"",null,null,null,null,"Onglet \"Indicateurs\"","DRFM COF","Accueil",null,null,null,null,"Administration",null,null,null,"ACCUEIL"]
[null,"Région Administrative","Statut","Classification","Type d'émissions","Info GES","Type d'indicateur","Exercice de suivi","Statut de l'action","Programmes","Fiche verrouillée",null,null,"Reccommandation"]
[null,"Sans objet","AC-Actif","Subvention","Québec","Oui","Minimum à atteindre","2013-2014-1","non démarrée","codeProgramme","Oui - partenaire",null,null,"Arrêter l'action"]
[null,"Plusieurs régions","TE-Terminé","Contrat fonctionnement","Hors-Québec","Non","Maximum à ne pas dépasser","2013-2014-2","en élaboration","Sans objet","Oui - diffusion en ligne",null,null,"Diminuer le budget de l'action"]
[null,"Toutes les régions","AT-En attente","Contrat immobilisation","Non quantifiable",null,"Binaire","2014-2015-1","en cours","Action-climat","Non - BGFV",null,null,"Maintenir le budget de l'action"]
[null,"01-Bas-Saint-Laurent","SU-Suspendu","CP-Contrat service professionnel",null,null,null,"2014-2015-2","terminée","Aide financière au développement des transports actifs dans les périmètres urbains (TAPU)",null,null,null,"Augmenter le budget de l'action"]
[null,"02-Saguenay- Lac-Saint-Jean","AN-Annulé","CT-Contrat service technique",null,null,null,"2015-2016-1","en suspens","Analyses de risques - municipalités"]
[null,"03-Capitale-Nationale","AB-Abandonnée","PI-Projet à l'interne",null,"PMO - FECC",null,"2015-2016-2","retirée du PMO","Cadre pour la prévention de sinistres",null,null,null,"Niv dépense"]
[null,"04-Mauricie ","Aucun frais d'administration","AU-Autre",null,"PMO - hors FECC","Étape","2016-2017-1",null,"Chauffez vert",null,null,null,"Moins d'un mois",null,"Oui"]
[null,"05-Estrie",null,null,null,"PMO - FECC et hors FECC","Acquisition de connaissances  ","2016-2017-2",null,"ClimatSol-Plus","Commentaires",null,null,"de un à 2 mois",null,"Non"]
[null,"06-Montréal",null,null,null,null,"Planification de la mise en œuvre","2017-2018-1",null,"Défi GES-Industrie","Accueil",null,null,"de 3 à 4 mois",null,"Incertain"]
[null,"07-Outaouais","Projet en lien avec le transport","Horizon temporel Potentiel GES",null,"Catégories","Implantation de solutions ","2017-2018-2",null,"Écocamionnage","Description",null,null,"de 5 à 6 mois"]
[null,"08-Abitibi-Témiscamingue","Oui","À la fin du projet (suite au dernier versement)",null,"Agriculture","Suivi et évaluation ","2018-2019-1",null,"ÉcoPerformance","Détail des projets",null,null,"de 7 à 12 mois"]
[null,"09-Côte-Nord","Non","Cinq ans après la commercialisation du produit",null,"Aménagement du territoire","Démarche intégrée","2018-2019-2","Part de financement par le PACC","Initiative jeunesse de lutte contre les changements climatiques","GES"]
[null,"10-Nord-du-Québec",null,"Dix ans après la commercialisation du produit",null,"Bâtiment",null,"2019-2020-1","Variable","Innov-R","Indicateurs"]
[null,"11-Gaspésie-Iles-de-la-Madeleine",null,2030,null,"Biodiversité, écosystèmes et ressources naturelles",null,"2019-2020-2",{"$f":"10 & \" %\"","v":"10 %"},"Non applicable","Validation",null,null,"Documents de mise en œuvre de l'action"]
[null,"12-Chaudières-Appalaches",null,2040,null,"Industrie",null,"2020-2021-1",{"$f":"20 & \" %\"","v":"20 %"},"Programme bioénergie","Tout - autres"]
[null,"13-Laval",null,2050,null,"Matières résiduelles",null,"2020-2021-2",{"$f":"30 & \" %\"","v":"30 %"},"Programme d'aide au développement du transport collectif (PADTC) - offre de services",null,null,null,"Document de planification du déroulement de l'action"]
[null,"14-Lanaudière",null,null,null,"Production d'énergie",null,"2021-2022-1",{"$f":"40 & \" %\"","v":"40 %"},"Programme d'aide gouvernementale à l'amélioration de l'efficacité du transport maritime, aérien et ferroviaire (PETMAF)",null,null,null,"Cadre normatif, guide d'appel de projets et documents afférents"]
[null,"15-Laurentides",null,null,null,"Résidentiel, commercial et institutionnel","Ajustements","2021-2022-2",{"$f":"50 & \" %\"","v":"50 %"},"Programme d'aide gouvernementale au transport collectif des personnes (PAGTCP) - immobilisation ","Onglet Évaluation",null,null,"Description de projet"]
[null,"16-Montérégie",null,null,null,"Transport","Biodiversité et écosystèmes","2022-2023-1",{"$f":"60 & \" %\"","v":"60 %"},"Programme d'aide gouvernementale au transport collectif des personnes (PAGTCP) - Volet Électrification des autobus urbains ","Type de document",null,null,"Indicateurs et cibles"]
[null,"17-Centre-du-Québec",null,null,null,"Autres","Communautés (santé-sécurité)","2022-2023-2",{"$f":"70 & \" %\"","v":"70 %"},"Programme d'appui à la lutte contre les changements climatiques dans le secteur bioalimentaire","Cadre d'évaluation"]
[null,"À l'extérieur du Québec",null,null,null,null,"Économie","2023-2024-1",{"$f":"80 & \" %\"","v":"80 %"},"Programme d'appui aux entreprises dans la mise en place du télétravail","Cadre de suivi d'évaluation préliminaire",null,null,"Cadre de suivi et d'évaluation préliminaire"]
[null,null,null,null,null,null,"Infrastructures","2023-2024-2",{"$f":"90 & \" %\"","v":"90 %"},"Programme de coopération climatique internationale","Rapport d'évaluation",null,null,"Cadre d'évaluation"]
[null,"Onglet \"Description\"",null,null,null,null,"Autres",null,{"$f":"100 & \" %\"","v":"100 %"},"Programme de recherche en partenariat sur la réduction des émissions de GES","Résultats",null,null,"Rapport d'évaluation"]
[null,"Bénéficiaires","État d'avancement","Moyens","Finalité","COVID",null,null,null,"Programme de résilience et d'adaptation face aux inondations",null,null,null,"Le bilan"]
[null,"Citoyens","Nouvelle","Savoir (Adaptation)","Atténuer les changements climatiques","Aucun changement prévu",null,null,null,"Programme de soutien à la modernisation de l'industrie du taxi (PSMITT)","Type d'évaluation"]
[null,"Communautés autochtones","En cours","Savoir (GES)","Construire l'économie de demain","Diminution des coûts prévus",null,null,null,"Programme de soutien à la production de gaz naturel renouvelable (PSPGNR)","En cours d'action"]
[null,"Entreprises (grandes entreprises)","Complétée","S'outiller (Adaptation)","Renforcer la résilience du Québec face aux impacts des changements climatiques","Augmentation des coûts prévus",null,null,null,"Programme de soutien au déploiement des autobus urbains et privés électriques - Écobus","Lorsque l'action est terminée"]
[null,"Entreprises (grands émetteurs)","Inactive","S'outiller (GES)","Sensibiliser, mobiliser et engager la société dans la transition climatique","L'augmentation prévue du coûts des projets rend le budget 2013-2020 insuffisant pour garantir la réalisation de tous les projets entamés",null,null,null,"Programme d'électrification du transport scolaire 2021-2024"]
[null,"Entreprises (petites ou moyennes entreprises)","Abandonnée","Agir (Adaptation)",null,"moins d'un mois",null,null,null,"Programme des nouvelles mobilités (NOMO)"]
[null,"Milieu de la recherche scientifique",null,"Éviter (GES)",null,"de 1 à 6 mois",null,null,null,"Programme d'extension du réseau triphasé","Recommandation"]
[null,"Milieu municipal",null,"Réduire (GES)",null,"de 7 à 12 mois",null,null,null,"Programme d'innovation en construction bois","Reconduire"]
[null,"Ministères et organismes gouvernementaux",null,"Séquestrer (GES)",null,"plus de 12 mois",null,null,null,"Réduction des risques  chaleur-précipitations-verdissement ","Ne pas reconduire"]
[null,"Organismes à but non lucratif",null,null,null,"Aucun changement","Risques",null,null,"Roulez vert","Voir commentaire ci-dessous"]
[null,null,null,null,null,"Retards prévus, mais les engagements seront tous pris avant le 31 décembre 2020","Biodiversité",null,null,"Roulez Vert - Volets multiples","Objectifs initiaux"]
[null,"Clientèle",null,null,null,"Retards prévus et les engagements ne pourront pas tous être pris avant le 31 décembre 2020","Économie",null,null,"Technoclimat","Oui"]
[null,null,null,null,null,"Les échéanciers pourront être devancés","Environnement",null,null,"Transportez-vert","Partiellement"]
[null,"Citoyens",null,null,null,"Des cibles pourraient être atteintes avant les délais prévus","Ressources naturelles",null,null,"Autre programme","Non"]
[null,"Communautés autochtones",null,null,null,"Toutes les cibles devraient être atteintes dans les délais prévus","Santé et sécurité publique"]
[null,"Entreprises (grandes entreprises)",null,null,null,"Toutes les cibles devraient être atteintes avec certains retards","Services à la population"]
[null,"Entreprises (grands émetteurs)"]
[null,"Entreprises (petites ou moyennes entreprises)",null,null,null,"Aucune cible ne pourra être atteinte"]
[null,"Milieu communautaire"]
[null,"Milieu de la recherche scientifique"]
[null,"Milieu municipal",null,null,null,null,"Aléas climatiques"]
[null,"Ministères et organismes gouvernementaux",null,null,null,null,"Chaleur extrême et hausse des températures moyennes",null,null,"NoProgrammeFonctionnement","SigleMinistere","NoProgrammeTransfert",null,null,"IdSeqAction","PSACof"]
[null,"Partenaires hors Québec",null,null,null,null,"Dégradation du pergélisol",null,null,17014,"HQ",53985,null,null,1011.0101,1813050]
[null,null,null,null,null,null,"Érosion et submersion côtières",null,null,17010,"MAMH",53981,null,null,1011.0103,1813051]
[null,null,null,null,null,null,"Feux de forêt",null,null,17007,"MAPAQ",53978,null,null,1011.0201,1813052]
[null,"Onglet \"Détails des projets\"",null,null,null,null,"Glissements de terrain",null,null,17009,"MEI",53980,null,null,1011.0203,1813053]
[null,"Type de bénéficiaire",null,null,null,null,"Inondations",null,null,17000,"MELCC",53971,null,null,1011.0205,1813054]
[null,"Final",null,null,null,null,"Manque d'eau",null,null,17002,"MERN",53973,null,null,1011.0207,1813055]
[null,"Intermédiaire",null,null,null,null,"Pluies intenses ",null,null,17015,"MERN (SITE)",53986,null,null,1011.0209,1813056]
[null,null,null,null,null,null,"Vent, verglas, redoux hivernaux, gel-dégel ",null,null,17004,"MFFP",53975,null,null,1011.03,1813057]
[null,null,null,null,null,null,"Plusieurs aléas",null,null,17003,"MFFP_FRN_ADTF",53974,null,null,1011.0401000000001,1813058]
[null,null,null,null,null,null,"Autres",null,null,17013,"MFQ",53984,null,null,1011.0403,1813059]
[null,null,null,null,null,null,null,null,null,17012,"MRIF",53983,null,null,1011.0405,1813060]
[null,null,null,null,null,null,null,null,null,17008,"MSP",53979,null,null,1011.05,1813061]
[null,null,null,null,null,null,null,null,null,17005,"MSSS",53976,null,null,1012.0101,1813062]
[null,null,null,null,null,null,"Effet visé",null,null,17016,"MTESS",53987,null,null,1012.0103,1813063]
[null,null,null,null,null,null,"Atténuation des changements climatiques",null,null,17011,"MTO",53982,null,null,1012.0105,1813064]
[null,null,null,null,null,null,"Augmentation de la résilience face aux changements climatiques",null,null,17001,"MTQ",53972,null,null,1012.02,1813065]
[null,null,null,null,null,null,null,null,null,17006,"RBQ",53977,null,null,1021.01,1813066]
[null,null,null,null,null,null,null,null,null,null,null,null,null,null,1021.0201,1813067]
[null,null,null,null,null,null,null,null,null,null,null,null,null,null,1021.0203,1813068]
[null,null,null,null,null,null,null,null,null,null,"Onglet de la fiche",null,null,null,1021.03,1813069]
[null,null,null,null,null,null,null,null,null,null,"Accueil",null,null,null,1021.04,1813070]
[null,null,null,null,null,null,null,null,null,null,"Administration",null,null,null,1031.01,1813071]
[null,null,null,null,null,null,null,null,null,null,"Description",null,null,null,1031.02]
[null,null,null,null,null,null,null,null,null,null,"Détail des projets",null,null,null,1032.01,1813072]
[null,null,null,null,null,null,null,null,null,null,"GES",null,null,null,1041.01,1813073]
[null,null,null,null,null,null,null,null,null,null,"Adaptation",null,null,null,1041.02,1813074]
[null,null,null,null,null,null,null,null,null,null,"Indicateurs",null,null,null,1041.03,1813075]
[null,null,null,null,null,null,null,null,null,null,"Commentaires",null,null,null,1041.04,1813076]
[null,null,null,null,null,null,null,null,null,null,null,null,null,null,1042.0101,1813077]
[null,null,null,null,null,null,null,null,null,null,null,null,null,null,1042.0102999999999,1813078]
[null,null,null,null,null,null,null,null,null,null,null,null,null,null,1042.0105000000001,1813079]
[null,null,null,null,null,null,null,null,null,null,null,null,null,null,1042.02,1813080]
[null,null,null,null,null,null,null,null,null,null,null,null,null,null,1051.01,1813081]
[null,null,null,null,null,null,null,null,null,null,null,null,null,null,1051.02,1813082]
[null,null,null,null,null,null,null,null,null,null,null,null,null,null,1061.01,1813083]
[null,null,null,null,null,null,null,null,null,null,null,null,null,null,1061.02]
[null,null,null,null,null,null,null,null,null,null,null,null,null,null,1062.01,1813084]
[null,null,null,null,null,null,null,null,null,null,null,null,null,null,1062.02,1813085]
[null,null,null,null,null,null,null,null,null,null,null,null,null,null,1062.03,1813086]
[null,null,null,null,null,null,null,null,null,null,null,null,null,null,1062.04,1813087]
[null,null,null,null,null,null,null,null,null,null,null,null,null,null,1062.05,1813088]
[null,null,null,null,null,null,null,null,null,null,null,null,null,null,1063.01,1813089]
[null,null,null,null,null,null,null,null,null,null,null,null,null,null,1063.02]
[null,null,null,null,null,null,null,null,null,null,null,null,null,null,1063.03,1813090]
[null,null,null,null,null,null,null,null,null,null,null,null,null,null,1071.01,1813091]
[null,null,null,null,null,null,null,null,null,null,null,null,null,null,1072.01,1813092]
[null,null,null,null,null,null,null,null,null,null,null,null,null,null,1072.02,1813093]
[null,null,null,null,null,null,null,null,null,null,null,null,null,null,1081.01,1813094]
[null,null,null,null,null,null,null,null,null,null,null,null,null,null,1082.01,1813095]
[null,null,null,null,null,null,null,null,null,null,null,null,null,null,1083.01,1813096]
[null,null,null,null,null,null,null,null,null,null,null,null,null,null,1084.01,1813097]
[null,null,null,null,null,null,null,null,null,null,null,null,null,null,1091.01,1813098]
[null,null,null,null,null,null,null,null,null,null,null,null,null,null,1092.01]
[null,null,null,null,null,null,null,null,null,null,null,null,null,null,1092.02,1813099]
[null,null,null,null,null,null,null,null,null,null,null,null,null,null,1092.03,1813100]
[null,null,null,null,null,null,null,null,null,null,null,null,null,null,1101.01]
[null,null,null,null,null,null,null,null,null,null,null,null,null,null,1111.01,1813101]
[null,null,null,null,null,null,null,null,null,null,null,null,null,null,1121.0101,1813102]
[null,null,null,null,null,null,null,null,null,null,null,null,null,null,1121.02,1813103]
[null,null,null,null,null,null,null,null,null,null,null,null,null,null,1131.0101,1813104]
[null,null,null,null,null,null,null,null,null,null,null,null,null,null,1131.0105000000001,1813105]
[null,null,null,null,null,null,null,null,null,null,null,null,null,null,2011.01,1810630]
[null,null,null,null,null,null,null,null,null,null,null,null,null,null,2011.02,1810631]
[null,null,null,null,null,null,null,null,null,null,null,null,null,null,2011.03,1813106]
[null,null,null,null,null,null,null,null,null,null,null,null,null,null,2011.04,1813107]
[null,null,null,null,null,null,null,null,null,null,null,null,null,null,2011.05,1813108]
[null,null,null,null,null,null,null,null,null,null,null,null,null,null,2011.0600999999999,1813109]
[null,null,null,null,null,null,null,null,null,null,null,null,null,null,2011.0700999999999,1813110]
[null,null,null,null,null,null,null,null,null,null,null,null,null,null,2011.0703000000001,1813111]
[null,null,null,null,null,null,null,null,null,null,null,null,null,null,2011.0705]
[null,null,null,null,null,null,null,null,null,null,null,null,null,null,2011.08]
[null,null,null,null,null,null,null,null,null,null,null,null,null,null,2011.09,1813112]
[null,null,null,null,null,null,null,null,null,null,null,null,null,null,2021.01,1813113]
[null,null,null,null,null,null,null,null,null,null,null,null,null,null,2021.02,1813114]
[null,null,null,null,null,null,null,null,null,null,null,null,null,null,2031.01,1813115]
[null,null,null,null,null,null,null,null,null,null,null,null,null,null,2031.02,1813116]
[null,null,null,null,null,null,null,null,null,null,null,null,null,null,2031.03,1813117]
[null,null,null,null,null,null,null,null,null,null,null,null,null,null,2032.01,1813118]
[null,null,null,null,null,null,null,null,null,null,null,null,null,null,2032.02,1813119]
[null,null,null,null,null,null,null,null,null,null,null,null,null,null,2032.03,1813120]
[null,null,null,null,null,null,null,null,null,null,null,null,null,null,2041.01,1813121]
[null,null,null,null,null,null,null,null,null,null,null,null,null,null,2041.0201,1813122]
[null,null,null,null,null,null,null,null,null,null,null,null,null,null,2041.0202999999999,1813126]
[null,null,null,null,null,null,null,null,null,null,null,null,null,null,2041.0205000000001,1813123]
[null,null,null,null,null,null,null,null,null,null,null,null,null,null,2041.0207,1813124]
[null,null,null,null,null,null,null,null,null,null,null,null,null,null,2041.0209,1813125]
[null,null,null,null,null,null,null,null,null,null,null,null,null,null,3011.01,1813127]
[null,null,null,null,null,null,null,null,null,null,null,null,null,null,3011.0201000000002,1813128]
[null,null,null,null,null,null,null,null,null,null,null,null,null,null,3011.0203000000001,1813129]
[null,null,null,null,null,null,null,null,null,null,null,null,null,null,3011.0205000000001,1813130]
[null,null,null,null,null,null,null,null,null,null,null,null,null,null,3011.0300999999999,1813131]
[null,null,null,null,null,null,null,null,null,null,null,null,null,null,3011.0302999999999,1813132]
[null,null,null,null,null,null,null,null,null,null,null,null,null,null,3011.0304999999998,1813133]
[null,null,null,null,null,null,null,null,null,null,null,null,null,null,3011.0306999999998,1813134]
[null,null,null,null,null,null,null,null,null,null,null,null,null,null,3012.01]
[null,null,null,null,null,null,null,null,null,null,null,null,null,null,3012.02]
[null,null,null,null,null,null,null,null,null,null,null,null,null,null,3012.03,1813135]
[null,null,null,null,null,null,null,null,null,null,null,null,null,null,3013.01,1813136]
[null,null,null,null,null,null,null,null,null,null,null,null,null,null,3013.02,1813137]
[null,null,null,null,null,null,null,null,null,null,null,null,null,null,3013.0300999999999,1813138]
[null,null,null,null,null,null,null,null,null,null,null,null,null,null,3013.04]
[null,null,null,null,null,null,null,null,null,null,null,null,null,null,3021.0101,1813139]
[null,null,null,null,null,null,null,null,null,null,null,null,null,null,3021.0102999999999,1813140]
[null,null,null,null,null,null,null,null,null,null,null,null,null,null,3021.02,1813141]
[null,null,null,null,null,null,null,null,null,null,null,null,null,null,3031.0101,1813142]
[null,null,null,null,null,null,null,null,null,null,null,null,null,null,3031.0104999999999,1813143]
[null,null,null,null,null,null,null,null,null,null,null,null,null,null,3031.0106999999998]
[null,null,null,null,null,null,null,null,null,null,null,null,null,null,3041.0101,1813144]
[null,null,null,null,null,null,null,null,null,null,null,null,null,null,3041.0102999999999,1813144]
[null,null,null,null,null,null,null,null,null,null,null,null,null,null,3042.0101,1813145]
[null,null,null,null,null,null,null,null,null,null,null,null,null,null,3042.0102999999999,1813145]
[null,null,null,null,null,null,null,null,null,null,null,null,null,null,3051.0101,1813146]
[null,null,null,null,null,null,null,null,null,null,null,null,null,null,3051.0102999999999,1813147]
[null,null,null,null,null,null,null,null,null,null,null,null,null,null,3051.02,1813148]
[null,null,null,null,null,null,null,null,null,null,null,null,null,null,3051.03,1813149]
[null,null,null,null,null,null,null,null,null,null,null,null,null,null,3052.01,1813150]
[null,null,null,null,null,null,null,null,null,null,null,null,null,null,3052.02,1813151]
[null,null,null,null,null,null,null,null,null,null,null,null,null,null,3052.0300999999999,1813152]
[null,null,null,null,null,null,null,null,null,null,null,null,null,null,3052.0302999999999,1813152]
[null,null,null,null,null,null,null,null,null,null,null,null,null,null,3053.01,1813153]
[null,null,null,null,null,null,null,null,null,null,null,null,null,null,3061.0101,1813154]
[null,null,null,null,null,null,null,null,null,null,null,null,null,null,3061.0102999999999]
[null,null,null,null,null,null,null,null,null,null,null,null,null,null,3062.02,1813155]
[null,null,null,null,null,null,null,null,null,null,null,null,null,null,4011.01,1813156]
[null,null,null,null,null,null,null,null,null,null,null,null,null,null,4011.02,1813157]
[null,null,null,null,null,null,null,null,null,null,null,null,null,null,4021.0101,1813158]
[null,null,null,null,null,null,null,null,null,null,null,null,null,null,4021.0102999999999,1813159]
[null,null,null,null,null,null,null,null,null,null,null,null,null,null,4021.0104999999999,1813160]
[null,null,null,null,null,null,null,null,null,null,null,null,null,null,4021.0106999999998,1813161]
[null,null,null,null,null,null,null,null,null,null,null,null,null,null,4021.0109000000002,1813162]
[null,null,null,null,null,null,null,null,null,null,null,null,null,null,4021.0111000000002,1810230]
[null,null,null,null,null,null,null,null,null,null,null,null,null,null,4022.0101,1813163]
[null,null,null,null,null,null,null,null,null,null,null,null,null,null,4022.0102999999999,1813163]
[null,null,null,null,null,null,null,null,null,null,null,null,null,null,4023.01,1813164]
[null,null,null,null,null,null,null,null,null,null,null,null,null,null,4023.0201000000002,1813165]
[null,null,null,null,null,null,null,null,null,null,null,null,null,null,4023.0203000000001,1813166]
[null,null,null,null,null,null,null,null,null,null,null,null,null,null,4023.0205000000001,1813167]
[null,null,null,null,null,null,null,null,null,null,null,null,null,null,4023.0205099999998,1813193]
[null,null,null,null,null,null,null,null,null,null,null,null,null,null,4031.01,1813168]
[null,null,null,null,null,null,null,null,null,null,null,null,null,null,4031.02,1813169]
[null,null,null,null,null,null,null,null,null,null,null,null,null,null,4031.03,1813170]
[null,null,null,null,null,null,null,null,null,null,null,null,null,null,4031.04,1813171]
[null,null,null,null,null,null,null,null,null,null,null,null,null,null,4032.01,1813172]
[null,null,null,null,null,null,null,null,null,null,null,null,null,null,4032.02,1813173]
[null,null,null,null,null,null,null,null,null,null,null,null,null,null,4032.03,1813174]
[null,null,null,null,null,null,null,null,null,null,null,null,null,null,4032.04,1813175]
[null,null,null,null,null,null,null,null,null,null,null,null,null,null,5011.01,1813176]
[null,null,null,null,null,null,null,null,null,null,null,null,null,null,5011.0200999999997,1813177]
[null,null,null,null,null,null,null,null,null,null,null,null,null,null,5011.0203000000001,1813178]
[null,null,null,null,null,null,null,null,null,null,null,null,null,null,5012.01,1813179]
[null,null,null,null,null,null,null,null,null,null,null,null,null,null,5012.0200999999997,1813180]
[null,null,null,null,null,null,null,null,null,null,null,null,null,null,5021.01,1813181]
[null,null,null,null,null,null,null,null,null,null,null,null,null,null,5021.0200000000004,1813182]
[null,null,null,null,null,null,null,null,null,null,null,null,null,null,5031.0101000000004,1813183]
[null,null,null,null,null,null,null,null,null,null,null,null,null,null,5031.0200999999997,1813184]
[null,null,null,null,null,null,null,null,null,null,null,null,null,null,5041.01,1813185]
[null,null,null,null,null,null,null,null,null,null,null,null,null,null,5041.0200000000004,1813186]
[]
[]
[]
[]
[null,"Gestion des indicateurs"]
[null,"Statuts des actions pour le calcul du %Avancement dans l'onglet Indicateurs",null,61]
[null,"2019-2020","2020-2021","2021-2022","2022-2023","2023-2024","2024-2025","2025-2026","2026-2027"]
[null,"non démarrée","non démarrée","en cours",{"$f":"Accueil!D58","v":"en cours"}]
[]
[null,"Budget 2019-2027 ($)",1250000]
[]
[]
[]
[null,"IdStatutAction","codeStatutAction","valeurStatutAction","rangStatut"]
[null,1,{"$f":"I18","v":"non démarrée"},0,1]
[null,2,{"$f":"I19","v":"en élaboration"},0,2]
[null,3,"en cours",0.5,3]
[null,4,"terminée",1,4]
[null,5,"en suspens",0,5]
[null,6,"retirée du PMO",0,6]

{"sheet":"Accueil","index":1,"n_rows":85,"n_cols":11,"rows_kept":85,"cut":false,"hidden":false,"merged":[[85,1,87,12],[72,1,72,2],[74,3,74,11],[74,1,74,2],[73,1,73,2],[76,11,76,12],[73,3,73,11],[72,3,72,6],[72,8,72,9],[72,10,72,11],[84,1,84,12],[66,8,66,9],[51,4,51,11],[52,4,52,11],[54,4,54,11],[53,4,53,11],[55,3,55,11],[69,0,71,0],[68,1,68,12],[71,10,71,11],[69,1,69,2],[71,8,71,9],[70,1,70,2],[71,1,71,2],[71,3,71,6],[70,8,70,9],[70,3,70,6],[69,8,69,9],[70,10,70,11],[69,10,69,11],[69,3,69,6],[1,5,2,12],[65,3,65,6],[64,3,64,6],[9,1,9,12],[4,1,5,12],[54,1,54,2],[58,1,58,2],[56,1,56,2],[56,3,56,10],[49,1,49,12],[55,1,55,2],[51,1,51,2],[52,1,52,2],[65,1,65,2],[65,8,65,9],[64,1,64,2],[53,1,53,2],[67,8,67,9],[57,1,57,2],[58,3,58,11],[64,8,64,9],[62,3,62,7],[57,3,57,11],[66,10,66,11],[67,3,67,6],[66,1,66,2],[67,10,67,11],[62,1,62,2],[65,10,65,11],[64,10,64,11],[67,1,67,2],[66,3,66,6]]}
[]
[null,null,null,null,null,"Exercice de suivi du Plan pour une économie verte 2030 (PEV 2030)"]
[]
[]
[]
[]
[]
[]
[]
[]
[]
[]
[]
[]
[]
[]
[]
[]
[]
[]
[]
[]
[]
[]
[]
[]
[]
[]
[]
[]
[]
[]
[]
[]
[]
[]
[]
[]
[]
[]
[]
[]
[]
[]
[]
[]
[]
[]
[]
[null,"Veuillez vérifier, compléter ou corriger les informations ci-dessous "]
[]
[null,"Mesure :",null,"4.2.3","Renforcer la collaboration intergouvernementale et internationale"]
[null,"Action :",null,"4.2.3.2","Soutenir des initiatives québécoises et multilatérales de coopération climatique internationale"]
[null,"Sous-action :",null,"4.2.3.2c","Initiative jeunesse de lutte contre les changements climatiques"]
[null,"Libellé usuel :",null,"4.2.3.2c","Soutenir des initiatives québécoises et multilatérales de coopération climatique internationale - Initiative jeunesse de lutte contre les changements climatiques"]
[null,"Programme :",null,"Initiative jeunesse de lutte contre les changements climatiques"]
[null,"Nom du programme :",null,"Initiative jeunesse de lutte contre les changements climatiques"]
[null,"Statut :",null,"en cours"]
[null,"Raison du statut de l’action :",null,"wwwwwernnnnnnnnnnnnnnnnnnnnnnnnnnnnnnnnnnnnnnnnnnnnnnnnnnnnnnnnnnnnnnnnnnnnnnnnnnnnnnnnnnnnnnnnnnnnnnnnnnnnnnnnnnnnnnnnnnnnnnnnnnnnnnnnnnnnnnnnnnnnnnnnnnnnnnnnn"]
[]
[]
[]
[null,"Informations en date du :",null,{"$f":"Utilitaire!G6","v":"2022-09-30"}]
[]
[null,"Ministère porteur :",null,"MRIF",null,null,null,null,"Direction responsable :",null,"Direction de la Francophonie et de la solidarité internationale"]
[null,"Partenaires :",null," Institut de la Francophonie et du développement durable (IFDD) et Les Offices jeunesse internationaux du Québec (LOJIQ)",null,null,null,null,"Part de financement par le FECC :",null,1]
[null,"Budget (M$) :",null,1.25,null,null,null,null,"Autres sources de financement :"]
[null,"Date de lancement de l’action :",null,"2021-04-01",null,null,null,null,"Date de fin de l’action :",null,"2027-03-31"]
[null,"Section réservée à l’usage exclusif du BECC (lignes 70 à 73 non publiées)"]
[null,"Chargé de projet :",null,null,null,null,null,null,"Tél. :"]
[null,"Responsable ministériel :",null,null,null,null,null,null,"Tél. :"]
[null,"Personne ressource pour le BECC :",null,"Patrice Bachand",null,null,null,null,"Courriel : ",null,"patrice.bachand@mri.gouv.qc.ca"]
[null,"Estimation des sommes résiduelles au \n31 décembre 2020 ($) :",null,0,null,null,null,null,"Précisions sur le montant des sommes résiduelles :",null,"s"]
[null,"Téléphone pour informations :",null,"418-649-2400 poste 57029"]
[null,"Référence Web :",null,"https://www.lojiq.org/programmes/initiative-jeunesse-de-lutte-contre-les-changements-climatiques/"]
[]
[]
[]
[]
[]
[]
[]
[]
[]
[null,"Ministère des Relations internationales et de la Francophonie"]

{"sheet":"Administration","index":2,"n_rows":300,"n_cols":12,"rows_kept":300,"cut":false,"hidden":true,"merged":[[207,12,296,14],[203,8,204,10],[203,11,204,14],[295,9,295,10],[297,9,297,10],[206,9,206,10],[207,9,207,10],[296,9,296,10],[206,12,206,14],[297,12,297,14],[44,8,44,14],[45,8,45,14],[46,8,46,10],[35,8,36,14],[73,1,74,1],[73,8,73,10],[74,8,74,10],[36,3,36,6],[46,11,46,12],[73,11,73,12],[74,11,74,12],[31,5,31,6],[32,3,32,4],[35,1,35,6],[31,3,31,4],[30,3,30,4],[1,1,2,6],[4,4,4,6],[4,1,4,3],[5,4,5,6],[26,5,26,6],[25,3,25,4],[24,1,24,6],[25,1,25,2],[26,1,26,2],[26,3,26,4],[6,4,6,5],[7,1,7,6],[23,2,23,3],[6,1,6,3],[208,1,299,1],[75,1,207,1],[30,11,30,14],[30,8,30,10],[75,12,75,14],[33,1,33,2],[33,3,33,4],[33,5,33,6],[30,1,30,2],[45,1,45,6],[31,1,31,2],[32,1,32,2],[32,5,32,6],[37,1,37,2],[37,4,37,6],[36,1,36,2],[27,3,27,4],[27,5,27,6],[25,5,25,6],[28,1,28,2],[30,5,30,6],[27,1,27,2],[28,5,28,6],[28,3,28,4],[29,1,29,2],[29,5,29,6],[29,3,29,4],[24,8,24,14],[26,8,26,10],[27,8,27,10],[28,8,28,10],[31,8,31,10],[26,11,26,12],[27,11,27,12],[28,11,28,12],[25,8,25,14]]}
[]
[null,{"$f":"Utilitaire!E8","v":"Plan pour une économie verte 2030"}]
[]
[]
[null,"Administration",null,null,{"$f":"Accueil!D65 & \" - \" & Accueil!D55","v":"MRIF - 4.2.3.2c"}]
[null,null,null,null,{"$f":"\"Action \" & Accueil!D58","v":"Action en cours"}]
[null,"Conseils de rédaction :",null,null,"Informations en date du :",null,{"$f":"Utilitaire!G6","v":"2022-09-30"}]
[null,"- Cet onglet ne sera pas publié: il est réservé uniquement pour un usage interne.\n- Le BECC tiendra à jour en continu la liste des livrables que vous devez transmettre en lien avec votre action. Vous serez en mesure de commenter et de mettre à jour les échéances à chaque exercice."]
[]
[]
[]
[]
[]
[]
[]
[]
[]
[]
[]
[]
[]
[]
[]
[]
[null,"Niveau annuel de dépenses au FECC"]
[null,null,null,"2022-2023",null,"2023-2024"]
[null,"Dernières prévisions de dépenses au FECC ($)"]
[null,"Allez-vous atteindre ce niveau de dépense annuel?"]
[null,"Sommes prévues être dépensées dans l'année ($) :"]
[null,"Commentaires :"]
[null,"Pouvez-vous aller au-delà de ce niveau de dépense?"]
[null,"Augmentation possible ($) :"]
[null,"Préavis requis :"]
[null,"Méthode employée :"]
[]
[null,"Enjeux et possibilités",null,null,null,null,null,null,"Informations de gestion"]
[null,"Risques liés au déploiement et probabilité de la réalisation de l'action",null,"Retard dans la réalisation des actions du côté de l'IFDD. Retard causé par les enjeux vécus au niveau administratif du côté de l'OIF qui a encaissé le chèque mais doit l'attribuer aux budgets de l'IFDD."]
[null,"Avez-vous besoin d'un budget supplémentaire jusqu'à la fin du PEV afin d'atteindre les objectifs de l'action ?"]
[]
[]
[]
[]
[]
[]
[]
[null,"Liste des livrables",null,null,null,null,null,null,"Combinaison comptable pour imputation à SAGIR"]
[null,null,"Type de document","Titre","Date prévue d'envoi au BECC","Date réelle d'envoi au BECC","Commentaires et hyperliens",null,"Programme pour transferts :",null,null,{"$f":"IFERROR(INDEX(Utilitaire!L63:L79,MATCH(Accueil!D65,Utilitaire!K63:K79,0)),\"\")","v":53983}]
[null,"Évaluation"]
[]
[]
[]
[]
[]
[]
[]
[]
[]
[]
[]
[]
[]
[]
[]
[]
[]
[]
[]
[]
[]
[]
[]
[]
[]
[null,"Évaluation","Rapport d'évaluation","Rapport d'évaluation de l'Initiative jeunesse de lutte contre les changements climatiques","2027-07-30",null,null,null,"Programme pour fonctionnement : ",null,null,{"$f":"IFERROR(INDEX(Utilitaire!J63:J79,MATCH(Accueil!D65,Utilitaire!K63:K79,0)),\"\")","v":17012}]
[null,null,null,null,null,null,null,null,"PSA : ",null,null,{"$f":"IFERROR(INDEX(Utilitaire!P63:P219,MATCH(Utilitaire!C12,Utilitaire!O63:O219,0)),\"\")","v":1813167}]
[null,"Documents de mise en œuvre de l'action"]
[]
[]
[]
[]
[]
[]
[]
[]
[]
[]
[]
[]
[]
[]
[]
[]
[]
[]
[]
[]
[]
[]
[]
[]
[]
[]
[]
[]
[]
[]
[]
[]
[]
[]
[]
[]
[]
[]
[]
[]
[]
[]
[]
[]
[]
[]
[]
[]
[]
[]
[]
[]
[]
[]
[]
[]
[]
[]
[]
[]
[]
[]
[]
[]
[]
[]
[]
[]
[]
[]
[]
[]
[]
[]
[]
[]
[]
[]
[]
[]
[]
[]
[]
[]
[]
[]
[]
[]
[]
[]
[]
[]
[]
[]
[]
[]
[]
[]
[]
[]
[]
[]
[]
[]
[]
[]
[]
[]
[]
[]
[]
[]
[]
[]
[]
[]
[]
[]
[]
[]
[]
[]
[]
[]
[]
[]
[]
[null,null,"Planification du déroulement de l'action","Échéancier des étapes à franchir pour renouveler l'Initiative jeunesse de lutte contre les changements climatiques ","2021-10-25","2022-03-09",null,null,"Pour toute question, vous pouvez contacter :"]
[null,null,"Description de projet","Note de positionnement_ Initiative jeunesse de lutte contre les changements climatiques","2021-10-25","2022-03-09"]
[null,null,"Indicateurs et cibles","Plan de suivi de l'Initiative jeunesse de lutte contre les changements climatiques","2021-10-25","2022-03-09"]
[null,null,"Indicateurs et cibles","Fiche indicateurs",null,"2022-03-09","Approuvés 2022-04-27",null," ",null,null," "]
[null,null,null,null,null,null,null,null," ",null,null," "]
[null,"Rapports et résultats","Livrables"]
[null,null,"Livrables"]
[null,null,"Livrables"]
[null,null,"Livrables"]
[null,null,"Livrables"]
[null,null,"Livrables"]
[null,null,"Livrables"]
[null,null,"Livrables"]
[null,null,"Livrables"]
[null,null,"Livrables"]
[null,null,"Livrables"]
[null,null,"Livrables"]
[null,null,"Livrables"]
[null,null,"Livrables"]
[null,null,"Livrables"]
[null,null,"Livrables"]
[null,null,"Livrables"]
[null,null,"Livrables"]
[null,null,"Livrables"]
[null,null,"Livrables"]
[null,null,"Livrables"]
[null,null,"Livrables"]
[null,null,"Livrables"]
[null,null,"Livrables"]
[null,null,"Livrables"]
[null,null,"Livrables"]
[null,null,"Livrables"]
[null,null,"Livrables"]
[null,null,"Livrables"]
[null,null,"Livrables"]
[null,null,"Livrables"]
[null,null,"Livrables"]
[null,null,"Livrables"]
[null,null,"Livrables"]
[null,null,"Livrables"]
[null,null,"Livrables"]
[null,null,"Livrables"]
[null,null,"Livrables"]
[null,null,"Livrables"]
[null,null,"Livrables"]
[null,null,"Livrables"]
[null,null,"Livrables"]
[null,null,"Livrables"]
[null,null,"Livrables"]
[null,null,"Livrables"]
[null,null,"Livrables"]
[null,null,"Livrables"]
[null,null,"Livrables"]
[null,null,"Livrables"]
[null,null,"Livrables"]
[null,null,"Livrables"]
[null,null,"Livrables"]
[null,null,"Livrables"]
[null,null,"Livrables"]
[null,null,"Livrables"]
[null,null,"Livrables"]
[null,null,"Livrables"]
[null,null,"Livrables"]
[null,null,"Livrables"]
[null,null,"Livrables"]
[null,null,"Livrables"]
[null,null,"Livrables"]
[null,null,"Livrables"]
[null,null,"Livrables"]
[null,null,"Livrables"]
[null,null,"Livrables"]
[null,null,"Livrables"]
[null,null,"Livrables"]
[null,null,"Livrables"]
[null,null,"Livrables"]
[null,null,"Livrables"]
[null,null,"Livrables"]
[null,null,"Livrables"]
[null,null,"Livrables"]
[null,null,"Livrables"]
[null,null,"Livrables"]
[null,null,"Livrables"]
[null,null,"Livrables"]
[null,null,"Livrables"]
[null,null,"Livrables"]
[null,null,"Livrables"]
[null,null,"Livrables"]
[null,null,"Livrables"]
[null,null,"Livrables"]
[null,null,"Livrables"]
[null,null,"Livrables"]
[null,null,"Livrables"]
[null,null,"Livrables",null,null,null,null,null," "]
[null,null,"Livrables",null,null,null,null,null," "]
[null,null,"Livrables",null,null,null,null,null," "]
[null,null,"Livrables"]
[null,null,"Livrables"]

{"sheet":"Description","index":3,"n_rows":197,"n_cols":14,"rows_kept":197,"cut":false,"hidden":false,"merged":[[40,1,40,2],[40,5,40,8],[55,2,55,5],[55,6,55,8],[1,1,2,14],[7,1,7,14],[4,1,4,5],[4,6,4,14],[5,6,5,14],[44,1,45,1],[44,2,44,3],[44,4,44,5],[44,6,44,8],[44,9,44,11],[44,12,44,14],[45,2,45,3],[45,4,45,5],[45,6,45,8],[45,9,45,11],[45,12,45,14],[43,2,43,14],[48,2,48,14],[49,2,49,14],[50,2,50,14],[52,2,52,14],[55,9,55,14],[194,1,194,2],[201,1,201,2],[199,1,199,2],[198,1,198,2],[197,1,197,2],[196,1,196,2],[195,1,195,2],[196,13,196,14],[194,3,194,12],[194,13,194,14],[200,1,200,2],[200,3,200,12],[200,13,200,14],[201,3,201,12],[199,3,199,12],[198,3,198,12],[197,3,197,12],[196,3,196,12],[195,3,195,12],[201,13,201,14],[199,13,199,14],[198,13,198,14],[197,13,197,14],[195,13,195,14],[193,1,193,14],[51,2,51,14],[189,1,189,14],[188,1,188,8],[185,1,185,8],[185,9,185,11],[185,12,185,14],[61,1,61,14],[62,1,62,8],[62,9,62,11],[62,12,62,14],[63,1,63,8],[188,12,188,14],[63,9,63,11],[186,9,186,11],[187,9,187,11],[188,9,188,11],[67,12,67,14],[64,12,64,14],[65,12,65,14],[66,12,66,14],[77,9,77,11],[77,12,77,14],[67,9,67,11],[72,9,72,11],[72,12,72,14],[186,1,186,8],[187,1,187,8],[68,1,68,8],[68,9,68,11],[68,12,68,14],[69,1,69,8],[69,9,69,11],[69,12,69,14],[74,1,74,8],[74,9,74,11],[74,12,74,14],[75,1,75,8],[75,9,75,11],[75,12,75,14],[76,1,76,8],[76,9,76,11],[76,12,76,14],[77,1,77,8],[78,1,78,8],[78,9,78,11],[165,1,165,8],[165,9,165,11],[67,1,67,8],[64,9,64,11],[65,9,65,11],[66,9,66,11],[63,12,63,14],[186,12,186,14],[187,12,187,14],[64,1,64,8],[65,1,65,8],[66,1,66,8],[72,1,72,8],[70,1,70,8],[70,9,70,11],[70,12,70,14],[71,1,71,8],[71,9,71,11],[71,12,71,14],[73,1,73,8],[73,9,73,11],[73,12,73,14],[164,1,164,8],[164,9,164,11],[164,12,164,14],[78,12,78,14],[165,12,165,14],[166,1,166,8],[166,9,166,11],[166,12,166,14],[79,1,79,8],[79,9,79,11],[79,12,79,14],[82,1,82,8],[82,9,82,11],[80,1,80,8],[80,9,80,11],[80,12,80,14],[81,1,81,8],[81,9,81,11],[81,12,81,14],[155,9,155,11],[155,12,155,14],[82,12,82,14],[83,1,83,8],[83,9,83,11],[83,12,83,14],[84,1,84,8],[84,9,84,11],[84,12,84,14],[170,12,170,14],[171,1,171,8],[171,9,171,11],[171,12,171,14],[167,1,167,8],[167,9,167,11],[167,12,167,14],[168,1,168,8],[168,9,168,11],[168,12,168,14],[85,1,85,8],[85,9,85,11],[85,12,85,14],[90,1,90,8],[90,9,90,11],[90,12,90,14],[91,1,91,8],[91,9,91,11],[91,12,91,14],[88,1,88,8],[88,9,88,11],[88,12,88,14],[184,1,184,8],[184,9,184,11],[184,12,184,14],[181,1,181,8],[181,9,181,11],[181,12,181,14],[182,1,182,8],[182,9,182,11],[182,12,182,14],[183,1,183,8],[183,9,183,11],[183,12,183,14],[180,1,180,8],[180,9,180,11],[180,12,180,14],[177,1,177,8],[177,9,177,11],[177,12,177,14],[178,1,178,8],[178,9,178,11],[178,12,178,14],[179,1,179,8],[179,9,179,11],[179,12,179,14],[176,1,176,8],[176,9,176,11],[176,12,176,14],[173,1,173,8],[173,9,173,11],[173,12,173,14],[174,1,174,8],[174,9,174,11],[174,12,174,14],[175,1,175,8],[175,9,175,11],[175,12,175,14],[172,1,172,8],[172,9,172,11],[172,12,172,14],[169,1,169,8],[169,9,169,11],[169,12,169,14],[170,1,170,8],[170,9,170,11],[86,1,86,8],[86,9,86,11],[86,12,86,14],[87,1,87,8],[87,9,87,11],[87,12,87,14],[94,1,94,8],[94,9,94,11],[94,12,94,14],[95,1,95,8],[95,9,95,11],[95,12,95,14],[92,1,92,8],[92,9,92,11],[92,12,92,14],[93,1,93,8],[89,1,89,8],[89,9,89,11],[89,12,89,14],[93,9,93,11],[93,12,93,14],[98,1,98,8],[98,9,98,11],[98,12,98,14],[99,1,99,8],[99,9,99,11],[99,12,99,14],[96,1,96,8],[96,9,96,11],[96,12,96,14],[97,1,97,8],[97,9,97,11],[97,12,97,14],[102,1,102,8],[102,9,102,11],[102,12,102,14],[103,1,103,8],[103,9,103,11],[103,12,103,14],[100,1,100,8],[100,9,100,11],[100,12,100,14],[101,1,101,8],[101,9,101,11],[101,12,101,14],[106,1,106,8],[106,9,106,11],[106,12,106,14],[107,1,107,8],[107,9,107,11],[107,12,107,14],[104,1,104,8],[104,9,104,11],[104,12,104,14],[105,1,105,8],[105,9,105,11],[105,12,105,14],[110,1,110,8],[110,9,110,11],[110,12,110,14],[111,1,111,8],[111,9,111,11],[111,12,111,14],[108,1,108,8],[108,9,108,11],[108,12,108,14],[109,1,109,8],[109,9,109,11],[109,12,109,14],[114,1,114,8],[114,9,114,11],[114,12,114,14],[115,1,115,8],[115,9,115,11],[115,12,115,14],[112,1,112,8],[112,9,112,11],[112,12,112,14],[113,1,113,8],[113,9,113,11],[113,12,113,14],[118,1,118,8],[118,9,118,11],[118,12,118,14],[119,1,119,8],[119,9,119,11],[119,12,119,14],[116,1,116,8],[116,9,116,11],[116,12,116,14],[117,1,117,8],[117,9,117,11],[117,12,117,14],[122,1,122,8],[122,9,122,11],[122,12,122,14],[123,1,123,8],[123,9,123,11],[123,12,123,14],[120,1,120,8],[120,9,120,11],[120,12,120,14],[121,1,121,8],[121,9,121,11],[121,12,121,14],[126,1,126,8],[126,9,126,11],[126,12,126,14],[127,1,127,8],[127,9,127,11],[127,12,127,14],[124,1,124,8],[124,9,124,11],[124,12,124,14],[125,1,125,8],[125,9,125,11],[125,12,125,14],[130,1,130,8],[130,9,130,11],[130,12,130,14],[131,1,131,8],[131,9,131,11],[131,12,131,14],[128,1,128,8],[128,9,128,11],[128,12,128,14],[129,1,129,8],[129,9,129,11],[129,12,129,14],[134,1,134,8],[134,9,134,11],[134,12,134,14],[135,1,135,8],[135,9,135,11],[135,12,135,14],[132,1,132,8],[132,9,132,11],[132,12,132,14],[133,1,133,8],[133,9,133,11],[133,12,133,14],[138,1,138,8],[138,9,138,11],[138,12,138,14],[139,1,139,8],[139,9,139,11],[139,12,139,14],[136,1,136,8],[136,9,136,11],[136,12,136,14],[137,1,137,8],[137,9,137,11],[137,12,137,14],[142,1,142,8],[142,9,142,11],[142,12,142,14],[143,1,143,8],[143,9,143,11],[143,12,143,14],[140,1,140,8],[140,9,140,11],[140,12,140,14],[141,1,141,8],[141,9,141,11],[141,12,141,14],[146,1,146,8],[146,9,146,11],[146,12,146,14],[147,1,147,8],[147,9,147,11],[147,12,147,14],[144,1,144,8],[144,9,144,11],[144,12,144,14],[145,1,145,8],[145,9,145,11],[145,12,145,14],[150,1,150,8],[150,9,150,11],[150,12,150,14],[151,1,151,8],[151,9,151,11],[151,12,151,14],[148,1,148,8],[148,9,148,11],[148,12,148,14],[149,1,149,8],[149,9,149,11],[149,12,149,14],[155,1,155,8],[152,1,152,8],[152,9,152,11],[152,12,152,14],[153,1,153,8],[163,1,163,8],[163,9,163,11],[163,12,163,14],[160,1,160,8],[160,9,160,11],[160,12,160,14],[161,1,161,8],[161,9,161,11],[161,12,161,14],[153,9,153,11],[153,12,153,14],[16,3,16,4],[16,6,16,14],[17,1,17,2],[17,3,17,4],[17,6,17,14],[54,1,54,14],[162,1,162,8],[162,9,162,11],[162,12,162,14],[158,1,158,8],[158,9,158,11],[158,12,158,14],[159,1,159,8],[159,9,159,11],[159,12,159,14],[156,1,156,8],[156,9,156,11],[156,12,156,14],[157,1,157,8],[157,9,157,11],[157,12,157,14],[154,1,154,8],[154,9,154,11],[154,12,154,14],[6,13,6,14],[6,9,6,12],[6,1,6,2],[47,9,47,11],[47,12,47,14],[42,2,42,14],[41,1,41,14],[46,1,47,1],[46,2,46,3],[18,1,18,2],[18,3,18,4],[18,5,18,14],[46,4,46,5],[46,6,46,8],[46,9,46,11],[46,12,46,14],[47,2,47,3],[47,4,47,5],[47,6,47,8],[14,1,14,14],[15,1,15,2],[15,3,15,4],[15,5,15,14],[16,1,16,2]]}
[]
[null,{"$f":"Utilitaire!E8","v":"Plan pour une économie verte 2030"}]
[]
[]
[null,"Description",null,null,null,null,{"$f":"Accueil!D65 & \" - \" & Accueil!D55","v":"MRIF - 4.2.3.2c"}]
[null,null,null,null,null,null,{"$f":"\"Action \" & Accueil!D58","v":"Action en cours"}]
[null,"Conseils de rédaction :",null,null,null,null,null,null,null,"Informations en date du :",null,null,null,{"$f":"Utilitaire!G6","v":"2022-09-30"}]
[null,"- Des précisions sur les contenus attendus sont disponibles en commentaires dans les cellules titres.\n- Les cases de la section « Informations générales » sont limitées à 2000 caractères.\n- Pour ajouter une nouvelle ligne à la section « Mise en œuvre », utilisez le bouton à cet effet (ligne 190)."]
[]
[]
[]
[]
[]
[]
[null,"Évaluation des effets de la COVID-19 sur la mise en œuvre de l'action"]
[null,"Résultats attendus : "]
[null,"Échéancier : "]
[null,"Sommes engagées \n(projets en cours) :"]
[null,"Autres : "]
[]
[]
[]
[]
[]
[]
[]
[]
[]
[]
[]
[]
[]
[]
[]
[]
[]
[]
[]
[]
[]
[null,"Informations en date du :",null,null,null,"2022-09-30"]
[null,"Informations générales"]
[null,"Contexte de l'action: ","L'Initiative jeunesse de lutte contre les changements climatiques vise à renforcer les capacités des pays francophones les plus vulnérables aux changements climatiques par le soutien à la participation des jeunes du Québec et de ces pays à la lutte contre les changements climatiques. Les pays francophones les plus vulnérables aux changements climatiques visés sont prioritairement les pays d'Afrique subsaharienne, d'Afrique du Nord et des Antilles."]
[null,"Objectif de l'action :","Cette action contribue à l'objectif 4.2 - S'engager avec les partenaires dans la transition au Québec et à l'international du Plan de mise en oeuvre (PMO) du PEV 2030. Cette action permettra aussi de (1) Favoriser le renforcement des capacités des jeunes en entrepreneuriat et économie verte en vue de permettre l'atténuation et l'adaptation aux changements climatiques des pays francophones les plus vulnérables aux changements climatiques (volet 1) et de (2) Faciliter l'appropriation et la sensibilisation par les jeunes des enjeux de la lutte contre les changements climatiques en vue d'assurer leur mobilisation en faveur de ceux-ci dans les pays les plus vulnérables aux changements climatiques (volet 2).\nEnfin, cette action permettra de répondre aux engagements du gouvernement du Québec en Francophonie en matière de lutte contre les changements climatiques."]
[null,"Bénéficiaires : "]
[null,null,"Autres (précisez) : ",null,"L'Institut de la Francophonie pour le développement durable (IFDD)",null,"Les Offices jeunesses internationaux du Québec (LOJIQ)"]
[null,"Clientèle ou secteur réglementé :"]
[null,null,"Autres (précisez) : ",null,"Jeunes du Québec et des pays francophones vulnérables aux changements climatiques, âgés de 18 à 35 ans.",null,"Jeunes du Québec et des pays francophones vulnérables aux changements climatiques, âgés de 18 à 35 ans."]
[null,"Critères d'admissibilité : ","• Contribuer au renforcement des capacités des jeunes en entrepreneuriat et économie verte ou à l'éducation et à la sensibilisation des jeunes aux enjeux climatiques;\n• Se dérouler pendant l'année financière visée (entre le 1er avril et le 31 mars); \n• Permettre des retombées tangibles mutuellement bénéfiques pour les partenaires."]
[null,"Processus de suivi de l'action :","Mise en place d'un comité de suivi. Composé de représentants de LOJIQ, de l'IFDD, du ministère de l'Environnement, et de la Lutte contre les changements climatiques, de la Faune et des Parcs (MELCCFP) et du ministère des Relations internationales et de la Francophonie (MRIF), ce comité se réunit à raison de trois fois par année (début, milieu, fin) ainsi qu'au besoin pour :\n• définir les orientations;\n• participer à la planification des projets à développer en cours d'année financière, au Québec et à l'international;\n• examiner la planification budgétaire des activités;\n• s'informer de l'état d'avancement et des défis rencontrés;\n• s'assurer de la cohérence dans la mise en œuvre des volets 1 et 2."]
[null,"Résultats et cobénéfices attendus :","•\t Les capacités des jeunes en entrepreneuriat et en économie verte sont renforcées dans les pays visés en vue de permettre l’atténuation des changements climatiques et l’adaptation à ces changements dans ces pays.\n•\t Les jeunes sont sensibilisés aux enjeux de la lutte contre les changements climatiques.\n•\t La mise en réseau et les échanges entre les jeunes sont favorisés.\n•\t La mobilité internationale des jeunes est encouragée.\n•\t L’information sur les enjeux climatiques est diffusée par et pour les jeunes."]
[null,"Résultats et cobénéfices obtenus dans la dernière année :","L’année 2021-2022 et la première moitié de l’année 2022-2023 ont permis de préparer les ententes avec LOJIQ et l’IFDD. Les deux ententes ont été signées. Seulement quelques activités ont été organisées du côté de LOJIQ. Du côté de l’IFDD, les résultats sont à venir."]
[null,"Résultats et cobénéfices obtenus depuis le lancement de l'action :","45 jeunes du Québec et des pays visés ont participé à l’une ou l’autre des cinq activités organisées par LOJIQ."]
[]
[null,"Classification"]
[null,"Finalité :",null,null,null,null,"Moyen :"]
[]
[]
[]
[]
[]
[null,"Mise en œuvre "]
[null,"Étapes (depuis le début de l'action)",null,null,null,null,null,null,null,"Échéancier",null,null,"État d'avancement"]
[1,"Continuité de l'action 9.4 du PACC 2013-2020",null,null,null,null,null,null,null,"2022-03-31",null,null,"Complétée"]
[2,"Renouvelement de l'entente administrative MRIF-MELCC 2022-2026 dans le cadre de la mesure IJLCC du PEV 2030",null,null,null,null,null,null,null,"2021-04-22",null,null,"Complétée"]
[3,"Négociation des convention de financement avec l'IFDD et LOJIQ",null,null,null,null,null,null,null,"2022-05-30",null,null,"Complétée"]
[4,"Transmission du CT au Conseil du trésor ",null,null,null,null,null,null,null,"2022-06-14",null,null,"Complétée"]
[5,"Signature de la convention de financement avec l'IFDD",null,null,null,null,null,null,null,"2022-09-29",null,null,"Complétée"]
[6,"Signature de la convention de financement avec LOJIQ",null,null,null,null,null,null,null,"2022-08-02",null,null,"Complétée"]
[]
[8]
[9]
[10]
[11]
[12]
[13]
[]
[]
[]
[]
[]
[]
[]
[]
[]
[]
[]
[]
[]
[]
[]
[]
[]
[]
[]
[]
[]
[]
[]
[]
[]
[]
[]
[]
[]
[]
[]
[]
[]
[]
[]
[]
[]
[]
[]
[]
[]
[]
[]
[]
[]
[]
[]
[]
[]
[]
[]
[]
[]
[]
[]
[]
[]
[]
[]
[]
[]
[]
[]
[]
[]
[]
[]
[]
[]
[]
[]
[]
[]
[]
[]
[]
[]
[]
[]
[]
[]
[]
[]
[]
[]
[]
[]
[]
[]
[]
[]
[]
[]
[]
[]
[]
[]
[]
[]
[]
[]
[]
[]
[]
[]
[]
[]
[]
[]
[]
[]
[]
[]
[null,"Ajouter une ligne"]
[]
[]
[]
[null,"Plans, stratégies ou politiques où s'inscrit la mise en œuvre de cette action"]
[null,"Abréviation",null,"Nom complet",null,null,null,null,null,null,null,null,null,"Numéro de l'action"]
[null,"PACC 2013-2020",null,"Plan d'action 2013-2020 sur les changements climatiques ",null,null,null,null,null,null,null,null,null,9.4]
[null,"PMO",null,"Plan de mise en œuvre 2022-2027 du Plan pour une économie verte 2030 (PEV 2030) ",null,null,null,null,null,null,null,null,null,"4.2.3.2 c"]

{"sheet":"Détail des projets","index":4,"n_rows":61,"n_cols":16,"rows_kept":61,"cut":false,"hidden":false,"merged":[[5,1,5,14],[1,11,1,14],[2,11,2,14],[3,11,3,14],[1,9,1,10],[1,1,3,8],[4,12,4,13],[4,1,4,2],[21,16,21,25],[22,14,23,14],[22,11,23,11],[22,12,23,12],[22,15,23,15],[22,10,23,10],[22,13,23,13],[22,9,23,9],[60,1,60,10],[22,7,23,7],[22,8,23,8],[14,1,14,4],[22,2,23,2],[22,6,23,6],[22,5,23,5],[22,1,23,1],[22,4,23,4],[22,3,23,3],[21,1,21,5],[18,3,18,5],[18,6,18,8]]}
[]
[null,{"$f":"Utilitaire!E8","v":"Plan pour une économie verte 2030"},null,null,null,null,null,null,null,"Détail des projets",null,{"$f":"Accueil!D65 & \" - \" & Accueil!D55","v":"MRIF - 4.2.3.2c"}]
[null,null,null,null,null,null,null,null,null,null,null,{"$f":"\"Action \" & Accueil!D58","v":"Action en cours"}]
[]
[]
[null,""]
[]
[]
[]
[]
[]
[]
[]
[]
[]
[]
[]
[]
[null,null,null,"Informations en date du :",null,null,"2022-09-30"]
[]
[]
[null,"DÉTAILS DES PROJETS AUTORISÉS"]
["No","Nom du projet","Nom du requérant ou du bénéficiaire","Type de bénéficiaire","Volet ou thématique","Catégorie","Nombre de projets","Région administrative","Municipalité","Statut","Classification du projet","Montant engagé ($) par le PEV 2030","Date de l'engagement","Date de fin","Dépenses imputées au FECC","Budget total du projet ($)"]
[null,null,null,null,null,null,null,null,null,null,null,"(convention signée, contrat, lettre de confirmation du ministre ou de son représentant ou lettre d'octroi)"]
[1]
[2]
[3,"Initiative jeunesse de lutte contre les changements climatiques","Office Québec-Monde pour la jeunesse (LOJIQ)","Jeunes du Québec et des pays francophones vulnérables aux changements climatiques, âgés de 18 à 35 ans.","LOJIQ","Autres",1,"À l'extérieur du Québec","Sans objet","AC-Actif","Subvention",625000,"2022-08-02","2027-03-31","PMO - FECC",625000]
[4,"Initiative jeunesse de lutte contre les changements climatiques","Institut de la francophonie pour le développement durable (IFDD)","Jeunes du Québec et des pays francophones vulnérables aux changements climatiques, âgés de 18 à 35 ans.","IFDD","Autres",1,"À l'extérieur du Québec","Sans objet","AC-Actif","Subvention",625000,"2022-09-29","2027-03-31","PMO - FECC",625000]
[5,"Participation de 5 jeunes issus des pays visés, au wébinaire sur l'équité intergénérationnelle autour du vivant.","Office Québec-Monde pour la jeunesse (LOJIQ)","Jeunes du Québec et des pays francophones vulnérables aux changements climatiques, âgés de 18 à 35 ans.","LOJIQ","Biodiversité",null,"06-Montréal","Montréal","TE-Terminé","Subvention",725,"2022-04-22","2022-04-22","PMO - FECC",725]
[6,"Participation de 2 jeunes  à la conférence en ligne sur le thème « Agir maintenant, préparer demain: l'urgence climatique francophone »","Office Québec-Monde pour la jeunesse (LOJIQ)",null,"LOJIQ","Autres",null,"06-Montréal","Montréal","TE-Terminé","Subvention",300,"2022-04-26","2022-04-26","PMO - FECC",300]
[7,"Participation de  16 jeunes au 89e Congrès annuel de l'Acfas dans le cadre de colloques dans le domaine de la lutte contre les changements climatiques. ","Office Québec-Monde pour la jeunesse (LOJIQ)","Jeunes du Québec et des pays francophones vulnérables aux changements climatiques, âgés de 18 à 35 ans.","LOJIQ","Autres",null,"06-Montréal","Montréal","TE-Terminé","Subvention",5420,"2022-05-09","2022-05-13","PMO - FECC",5420]
[8,"Participation de 14 jeunes  au 5e Congrès mondial en agroforesterie organisé par l'Université Laval.","Office Québec-Monde pour la jeunesse (LOJIQ)","Jeunes du Québec et des pays francophones vulnérables aux changements climatiques, âgés de 18 à 35 ans.","LOJIQ","Biodiversité, écosystèmes et ressources naturelles",null,"03-Capitale-Nationale","Québec","TE-Terminé","Subvention",7225,"2022-07-17","2022-07-20","PMO - FECC",7225]
[9,"Participation de 8 jeunes issus des pays visés, aux Écoles d'été en agriculture urbaine du Laboratoire sur l'agriculture urbaine.","Office Québec-Monde pour la jeunesse (LOJIQ)","Jeunes du Québec et des pays francophones vulnérables aux changements climatiques, âgés de 18 à 35 ans.","LOJIQ","Agriculture",null,"06-Montréal","Montréal","TE-Terminé","Subvention",6605.23,"2022-08-02","2022-08-27","PMO - FECC",6605.23]
[10]
[11]
[12]
[13]
[14]
[15]
[16]
[17]
[18]
[19]
[20]
[21]
[22]
[23]
[24]
[25]
[26]
[27]
[28]
[29]
[30]
[31]
[32]
[33]
[34]
[35]
[36]
[null,"TOTAL DES DÉPENSES ($)",null,null,null,null,null,null,null,null,null,{"$f":"SUM(L25:L60)","v":1270275.23},null,null,null,{"$f":"SUM(P25:P60)","v":1270275.23}]

{"sheet":"GES","index":5,"n_rows":61,"n_cols":35,"rows_kept":61,"cut":false,"hidden":true,"merged":[[60,1,60,3],[1,9,1,10],[19,8,19,13],[1,11,1,14],[2,11,2,14],[3,11,3,14],[5,1,5,14],[1,1,3,8],[19,14,19,15],[19,1,19,5],[4,13,4,14],[4,10,4,12],[4,1,4,2],[21,7,21,37],[22,33,22,34],[22,4,23,4],[18,1,18,2],[21,5,21,6],[22,6,23,6],[22,11,22,12],[22,25,22,26],[22,21,22,22],[22,8,23,8],[22,9,23,9],[22,17,22,18],[22,19,22,20],[22,29,22,30],[22,31,22,32],[22,23,22,24],[22,27,22,28],[22,1,23,1],[22,2,23,2],[22,3,23,3],[22,13,22,14],[22,15,22,16]]}
[]
[null,{"$f":"Utilitaire!E8","v":"Plan pour une économie verte 2030"},null,null,null,null,null,null,null,"GES",null,{"$f":"Accueil!D65 & \" - \" & Accueil!D55","v":"MRIF - 4.2.3.2c"}]
[null,null,null,null,null,null,null,null,null,null,null,{"$f":"\"Action \" & Accueil!D58","v":"Action en cours"}]
[]
[null,"Conseils de rédaction :",null,null,null,null,null,null,null,null,"Informations en date du :",null,null,{"$f":"Utilitaire!G6","v":"2022-09-30"}]
[null,"- Veuillez sélectionner les choix pertinents pour votre action à la ligne 20.\n- Veuillez remplir le tableau uniquement si des résultats ont déjà pu être colligés.                                                                                                                                                                                 "]
[]
[]
[]
[]
[]
[]
[]
[]
[]
[]
[]
[]
[]
[null,"Potentiel de réduction des GES évalué lors de la sélection des projets de cette action : ",null,null,null,null,"Non",null,"Réductions réelles quantifiables des émissions de GES attendues pour cette action :   ",null,null,null,null,null,"Non"]
[]
[null,null,null,null,null,"ÉVALUATION DU POTENTIEL DE RÉDUCTION ET D'ÉVITEMENT D'ÉMISSIONS DE GES À TERME",null,"DÉTAIL DES ÉMISSIONS DE GES RÉDUITES OU ÉVITÉES  (en tonnes éq. CO2)"]
[null,"Nom du projet","Nom du requérant ou du bénéficiaire","Région administrative","Montant engagé ($)","Potentiel de réduction des émissions de GES sur une base annuelle","Horizon temporel pour la réalisation du potentiel","Coût/tonne estimé","Type d'émissions","Émissions rapportées dans l'inventaire","Pérennité des réductions","Émissions",null,"Vérifiées",null,"2019-2020",null,"2020-2021",null,"2021-2022",null,"2022-2023",null,"2023-2024",null,"2024-2025",null,"2025-2026",null,"2026-2027",null,"2027-2028",null,"2028-2029"]
[null,null,null,null,null,"(tonnes éq. CO2)",null,"$\n------------ \ntonnes éq. CO2",null,null,"(années)","Réduites","Évitées","Tierce partie","MO","Vérifié","Non vérifié","Vérifié","Non vérifié","Vérifié","Non vérifié","Vérifié","Non vérifié","Vérifié","Non vérifié","Vérifié","Non vérifié","Vérifié","Non vérifié","Vérifié","Non vérifié","Vérifié","Non vérifié","Vérifié","Non vérifié"]
[null,{"$f":"IF(LEN('Détail des projets'!B25)=0,\"\",'Détail des projets'!B25)","v":""},{"$f":"IF(LEN('Détail des projets'!C25)=0,\"\",'Détail des projets'!C25)","v":""},{"$f":"IF(LEN('Détail des projets'!H25)=0,\"\",'Détail des projets'!H25)","v":""},{"$f":"IF(LEN('Détail des projets'!L25)=0,\"\",'Détail des projets'!L25)","v":""}]
[null,{"$f":"IF(LEN('Détail des projets'!B26)=0,\"\",'Détail des projets'!B26)","v":""},{"$f":"IF(LEN('Détail des projets'!C26)=0,\"\",'Détail des projets'!C26)","v":""},{"$f":"IF(LEN('Détail des projets'!H26)=0,\"\",'Détail des projets'!H26)","v":""},{"$f":"IF(LEN('Détail des projets'!L26)=0,\"\",'Détail des projets'!L26)","v":""}]
[null,{"$f":"IF(LEN('Détail des projets'!B27)=0,\"\",'Détail des projets'!B27)","v":"Initiative jeunesse de lutte contre les changements climatiques"},{"$f":"IF(LEN('Détail des projets'!C27)=0,\"\",'Détail des projets'!C27)","v":"Office Québec-Monde pour la jeunesse (LOJIQ)"},{"$f":"IF(LEN('Détail des projets'!H27)=0,\"\",'Détail des projets'!H27)","v":"À l'extérieur du Québec"},{"$f":"IF(LEN('Détail des projets'!L27)=0,\"\",'Détail des projets'!L27)","v":625000}]
[null,{"$f":"IF(LEN('Détail des projets'!B28)=0,\"\",'Détail des projets'!B28)","v":"Initiative jeunesse de lutte contre les changements climatiques"},{"$f":"IF(LEN('Détail des projets'!C28)=0,\"\",'Détail des projets'!C28)","v":"Institut de la francophonie pour le développement durable (IFDD)"},{"$f":"IF(LEN('Détail des projets'!H28)=0,\"\",'Détail des projets'!H28)","v":"À l'extérieur du Québec"},{"$f":"IF(LEN('Détail des projets'!L28)=0,\"\",'Détail des projets'!L28)","v":625000}]
[null,{"$f":"IF(LEN('Détail des projets'!B29)=0,\"\",'Détail des projets'!B29)","v":"Participation de 5 jeunes issus des pays visés, au wébinaire sur l'équité intergénérationnelle autour du vivant."},{"$f":"IF(LEN('Détail des projets'!C29)=0,\"\",'Détail des projets'!C29)","v":"Office Québec-Monde pour la jeunesse (LOJIQ)"},{"$f":"IF(LEN('Détail des projets'!H29)=0,\"\",'Détail des projets'!H29)","v":"06-Montréal"},{"$f":"IF(LEN('Détail des projets'!L29)=0,\"\",'Détail des projets'!L29)","v":725}]
[null,{"$f":"IF(LEN('Détail des projets'!B30)=0,\"\",'Détail des projets'!B30)","v":"Participation de 2 jeunes  à la conférence en ligne sur le thème « Agir maintenant, préparer demain: l'urgence climatique francophone »"},{"$f":"IF(LEN('Détail des projets'!C30)=0,\"\",'Détail des projets'!C30)","v":"Office Québec-Monde pour la jeunesse (LOJIQ)"},{"$f":"IF(LEN('Détail des projets'!H30)=0,\"\",'Détail des projets'!H30)","v":"06-Montréal"},{"$f":"IF(LEN('Détail des projets'!L30)=0,\"\",'Détail des projets'!L30)","v":300}]
[null,{"$f":"IF(LEN('Détail des projets'!B31)=0,\"\",'Détail des projets'!B31)","v":"Participation de  16 jeunes au 89e Congrès annuel de l'Acfas dans le cadre de colloques dans le domaine de la lutte contre les changements climatiques. "},{"$f":"IF(LEN('Détail des projets'!C31)=0,\"\",'Détail des projets'!C31)","v":"Office Québec-Monde pour la jeunesse (LOJIQ)"},{"$f":"IF(LEN('Détail des projets'!H31)=0,\"\",'Détail des projets'!H31)","v":"06-Montréal"},{"$f":"IF(LEN('Détail des projets'!L31)=0,\"\",'Détail des projets'!L31)","v":5420}]
[null,{"$f":"IF(LEN('Détail des projets'!B32)=0,\"\",'Détail des projets'!B32)","v":"Participation de 14 jeunes  au 5e Congrès mondial en agroforesterie organisé par l'Université Laval."},{"$f":"IF(LEN('Détail des projets'!C32)=0,\"\",'Détail des projets'!C32)","v":"Office Québec-Monde pour la jeunesse (LOJIQ)"},{"$f":"IF(LEN('Détail des projets'!H32)=0,\"\",'Détail des projets'!H32)","v":"03-Capitale-Nationale"},{"$f":"IF(LEN('Détail des projets'!L32)=0,\"\",'Détail des projets'!L32)","v":7225}]
[null,{"$f":"IF(LEN('Détail des projets'!B33)=0,\"\",'Détail des projets'!B33)","v":"Participation de 8 jeunes issus des pays visés, aux Écoles d'été en agriculture urbaine du Laboratoire sur l'agriculture urbaine."},{"$f":"IF(LEN('Détail des projets'!C33)=0,\"\",'Détail des projets'!C33)","v":"Office Québec-Monde pour la jeunesse (LOJIQ)"},{"$f":"IF(LEN('Détail des projets'!H33)=0,\"\",'Détail des projets'!H33)","v":"06-Montréal"},{"$f":"IF(LEN('Détail des projets'!L33)=0,\"\",'Détail des projets'!L33)","v":6605.23}]
[null,{"$f":"IF(LEN('Détail des projets'!B34)=0,\"\",'Détail des projets'!B34)","v":""},{"$f":"IF(LEN('Détail des projets'!C34)=0,\"\",'Détail des projets'!C34)","v":""},{"$f":"IF(LEN('Détail des projets'!H34)=0,\"\",'Détail des projets'!H34)","v":""},{"$f":"IF(LEN('Détail des projets'!L34)=0,\"\",'Détail des projets'!L34)","v":""}]
[null,{"$f":"IF(LEN('Détail des projets'!B35)=0,\"\",'Détail des projets'!B35)","v":""},{"$f":"IF(LEN('Détail des projets'!C35)=0,\"\",'Détail des projets'!C35)","v":""},{"$f":"IF(LEN('Détail des projets'!H35)=0,\"\",'Détail des projets'!H35)","v":""},{"$f":"IF(LEN('Détail des projets'!L35)=0,\"\",'Détail des projets'!L35)","v":""}]
[null,{"$f":"IF(LEN('Détail des projets'!B36)=0,\"\",'Détail des projets'!B36)","v":""},{"$f":"IF(LEN('Détail des projets'!C36)=0,\"\",'Détail des projets'!C36)","v":""},{"$f":"IF(LEN('Détail des projets'!H36)=0,\"\",'Détail des projets'!H36)","v":""},{"$f":"IF(LEN('Détail des projets'!L36)=0,\"\",'Détail des projets'!L36)","v":""}]
[]
[null,{"$f":"IF(LEN('Détail des projets'!B38)=0,\"\",'Détail des projets'!B38)","v":""},{"$f":"IF(LEN('Détail des projets'!C38)=0,\"\",'Détail des projets'!C38)","v":""},{"$f":"IF(LEN('Détail des projets'!H38)=0,\"\",'Détail des projets'!H38)","v":""},{"$f":"IF(LEN('Détail des projets'!L38)=0,\"\",'Détail des projets'!L38)","v":""}]
[null,{"$f":"IF(LEN('Détail des projets'!B39)=0,\"\",'Détail des projets'!B39)","v":""},{"$f":"IF(LEN('Détail des projets'!C39)=0,\"\",'Détail des projets'!C39)","v":""},{"$f":"IF(LEN('Détail des projets'!H39)=0,\"\",'Détail des projets'!H39)","v":""},{"$f":"IF(LEN('Détail des projets'!L39)=0,\"\",'Détail des projets'!L39)","v":""}]
[null,{"$f":"IF(LEN('Détail des projets'!B40)=0,\"\",'Détail des projets'!B40)","v":""},{"$f":"IF(LEN('Détail des projets'!C40)=0,\"\",'Détail des projets'!C40)","v":""},{"$f":"IF(LEN('Détail des projets'!H40)=0,\"\",'Détail des projets'!H40)","v":""},{"$f":"IF(LEN('Détail des projets'!L40)=0,\"\",'Détail des projets'!L40)","v":""}]
[null,{"$f":"IF(LEN('Détail des projets'!B41)=0,\"\",'Détail des projets'!B41)","v":""},{"$f":"IF(LEN('Détail des projets'!C41)=0,\"\",'Détail des projets'!C41)","v":""},{"$f":"IF(LEN('Détail des projets'!H41)=0,\"\",'Détail des projets'!H41)","v":""},{"$f":"IF(LEN('Détail des projets'!L41)=0,\"\",'Détail des projets'!L41)","v":""}]
[null,{"$f":"IF(LEN('Détail des projets'!B42)=0,\"\",'Détail des projets'!B42)","v":""},{"$f":"IF(LEN('Détail des projets'!C42)=0,\"\",'Détail des projets'!C42)","v":""},{"$f":"IF(LEN('Détail des projets'!H42)=0,\"\",'Détail des projets'!H42)","v":""},{"$f":"IF(LEN('Détail des projets'!L42)=0,\"\",'Détail des projets'!L42)","v":""}]
[null,{"$f":"IF(LEN('Détail des projets'!B43)=0,\"\",'Détail des projets'!B43)","v":""},{"$f":"IF(LEN('Détail des projets'!C43)=0,\"\",'Détail des projets'!C43)","v":""},{"$f":"IF(LEN('Détail des projets'!H43)=0,\"\",'Détail des projets'!H43)","v":""},{"$f":"IF(LEN('Détail des projets'!L43)=0,\"\",'Détail des projets'!L43)","v":""}]
[null,{"$f":"IF(LEN('Détail des projets'!B44)=0,\"\",'Détail des projets'!B44)","v":""},{"$f":"IF(LEN('Détail des projets'!C44)=0,\"\",'Détail des projets'!C44)","v":""},{"$f":"IF(LEN('Détail des projets'!H44)=0,\"\",'Détail des projets'!H44)","v":""},{"$f":"IF(LEN('Détail des projets'!L44)=0,\"\",'Détail des projets'!L44)","v":""}]
[null,{"$f":"IF(LEN('Détail des projets'!B45)=0,\"\",'Détail des projets'!B45)","v":""},{"$f":"IF(LEN('Détail des projets'!C45)=0,\"\",'Détail des projets'!C45)","v":""},{"$f":"IF(LEN('Détail des projets'!H45)=0,\"\",'Détail des projets'!H45)","v":""},{"$f":"IF(LEN('Détail des projets'!L45)=0,\"\",'Détail des projets'!L45)","v":""}]
[null,{"$f":"IF(LEN('Détail des projets'!B46)=0,\"\",'Détail des projets'!B46)","v":""},{"$f":"IF(LEN('Détail des projets'!C46)=0,\"\",'Détail des projets'!C46)","v":""},{"$f":"IF(LEN('Détail des projets'!H46)=0,\"\",'Détail des projets'!H46)","v":""},{"$f":"IF(LEN('Détail des projets'!L46)=0,\"\",'Détail des projets'!L46)","v":""}]
[null,{"$f":"IF(LEN('Détail des projets'!B47)=0,\"\",'Détail des projets'!B47)","v":""},{"$f":"IF(LEN('Détail des projets'!C47)=0,\"\",'Détail des projets'!C47)","v":""},{"$f":"IF(LEN('Détail des projets'!H47)=0,\"\",'Détail des projets'!H47)","v":""},{"$f":"IF(LEN('Détail des projets'!L47)=0,\"\",'Détail des projets'!L47)","v":""}]
[null,{"$f":"IF(LEN('Détail des projets'!B48)=0,\"\",'Détail des projets'!B48)","v":""},{"$f":"IF(LEN('Détail des projets'!C48)=0,\"\",'Détail des projets'!C48)","v":""},{"$f":"IF(LEN('Détail des projets'!H48)=0,\"\",'Détail des projets'!H48)","v":""},{"$f":"IF(LEN('Détail des projets'!L48)=0,\"\",'Détail des projets'!L48)","v":""}]
[null,{"$f":"IF(LEN('Détail des projets'!B49)=0,\"\",'Détail des projets'!B49)","v":""},{"$f":"IF(LEN('Détail des projets'!C49)=0,\"\",'Détail des projets'!C49)","v":""},{"$f":"IF(LEN('Détail des projets'!H49)=0,\"\",'Détail des projets'!H49)","v":""},{"$f":"IF(LEN('Détail des projets'!L49)=0,\"\",'Détail des projets'!L49)","v":""}]
[null,{"$f":"IF(LEN('Détail des projets'!B50)=0,\"\",'Détail des projets'!B50)","v":""},{"$f":"IF(LEN('Détail des projets'!C50)=0,\"\",'Détail des projets'!C50)","v":""},{"$f":"IF(LEN('Détail des projets'!H50)=0,\"\",'Détail des projets'!H50)","v":""},{"$f":"IF(LEN('Détail des projets'!L50)=0,\"\",'Détail des projets'!L50)","v":""}]
[null,{"$f":"IF(LEN('Détail des projets'!B51)=0,\"\",'Détail des projets'!B51)","v":""},{"$f":"IF(LEN('Détail des projets'!C51)=0,\"\",'Détail des projets'!C51)","v":""},{"$f":"IF(LEN('Détail des projets'!H51)=0,\"\",'Détail des projets'!H51)","v":""},{"$f":"IF(LEN('Détail des projets'!L51)=0,\"\",'Détail des projets'!L51)","v":""}]
[null,{"$f":"IF(LEN('Détail des projets'!B52)=0,\"\",'Détail des projets'!B52)","v":""},{"$f":"IF(LEN('Détail des projets'!C52)=0,\"\",'Détail des projets'!C52)","v":""},{"$f":"IF(LEN('Détail des projets'!H52)=0,\"\",'Détail des projets'!H52)","v":""},{"$f":"IF(LEN('Détail des projets'!L52)=0,\"\",'Détail des projets'!L52)","v":""}]
[null,{"$f":"IF(LEN('Détail des projets'!B53)=0,\"\",'Détail des projets'!B53)","v":""},{"$f":"IF(LEN('Détail des projets'!C53)=0,\"\",'Détail des projets'!C53)","v":""},{"$f":"IF(LEN('Détail des projets'!H53)=0,\"\",'Détail des projets'!H53)","v":""},{"$f":"IF(LEN('Détail des projets'!L53)=0,\"\",'Détail des projets'!L53)","v":""}]
[null,{"$f":"IF(LEN('Détail des projets'!B54)=0,\"\",'Détail des projets'!B54)","v":""},{"$f":"IF(LEN('Détail des projets'!C54)=0,\"\",'Détail des projets'!C54)","v":""},{"$f":"IF(LEN('Détail des projets'!H54)=0,\"\",'Détail des projets'!H54)","v":""},{"$f":"IF(LEN('Détail des projets'!L54)=0,\"\",'Détail des projets'!L54)","v":""}]
[null,{"$f":"IF(LEN('Détail des projets'!B55)=0,\"\",'Détail des projets'!B55)","v":""},{"$f":"IF(LEN('Détail des projets'!C55)=0,\"\",'Détail des projets'!C55)","v":""},{"$f":"IF(LEN('Détail des projets'!H55)=0,\"\",'Détail des projets'!H55)","v":""},{"$f":"IF(LEN('Détail des projets'!L55)=0,\"\",'Détail des projets'!L55)","v":""}]
[null,{"$f":"IF(LEN('Détail des projets'!B56)=0,\"\",'Détail des projets'!B56)","v":""},{"$f":"IF(LEN('Détail des projets'!C56)=0,\"\",'Détail des projets'!C56)","v":""},{"$f":"IF(LEN('Détail des projets'!H56)=0,\"\",'Détail des projets'!H56)","v":""},{"$f":"IF(LEN('Détail des projets'!L56)=0,\"\",'Détail des projets'!L56)","v":""}]
[null,{"$f":"IF(LEN('Détail des projets'!B57)=0,\"\",'Détail des projets'!B57)","v":""},{"$f":"IF(LEN('Détail des projets'!C57)=0,\"\",'Détail des projets'!C57)","v":""},{"$f":"IF(LEN('Détail des projets'!H57)=0,\"\",'Détail des projets'!H57)","v":""},{"$f":"IF(LEN('Détail des projets'!L57)=0,\"\",'Détail des projets'!L57)","v":""}]
[null,{"$f":"IF(LEN('Détail des projets'!B58)=0,\"\",'Détail des projets'!B58)","v":""},{"$f":"IF(LEN('Détail des projets'!C58)=0,\"\",'Détail des projets'!C58)","v":""},{"$f":"IF(LEN('Détail des projets'!H58)=0,\"\",'Détail des projets'!H58)","v":""},{"$f":"IF(LEN('Détail des projets'!L58)=0,\"\",'Détail des projets'!L58)","v":""}]
[null,{"$f":"IF(LEN('Détail des projets'!B59)=0,\"\",'Détail des projets'!B59)","v":""},{"$f":"IF(LEN('Détail des projets'!C59)=0,\"\",'Détail des projets'!C59)","v":""},{"$f":"IF(LEN('Détail des projets'!H59)=0,\"\",'Détail des projets'!H59)","v":""},{"$f":"IF(LEN('Détail des projets'!L59)=0,\"\",'Détail des projets'!L59)","v":""}]
[null,{"$f":"IF(LEN('Détail des projets'!B60)=0,\"\",'Détail des projets'!B60)","v":""},{"$f":"IF(LEN('Détail des projets'!C60)=0,\"\",'Détail des projets'!C60)","v":""},{"$f":"IF(LEN('Détail des projets'!H60)=0,\"\",'Détail des projets'!H60)","v":""},{"$f":"IF(LEN('Détail des projets'!L60)=0,\"\",'Détail des projets'!L60)","v":""}]
[null,"TOTAL (tonnes CO2 éq.)",null,null,{"$f":"SUM(E27:E50)","v":1270275.23},0,null,null,null,null,null,null,null,null,null,{"$f":"SUM(P27:P60)","v":0},0,0,0,0,0,0,0]

{"sheet":"Adaptation","index":6,"n_rows":60,"n_cols":12,"rows_kept":60,"cut":false,"hidden":false,"merged":[[4,8,4,10],[4,11,4,12],[4,1,4,3],[23,8,23,12],[22,7,22,12],[22,4,23,4],[22,5,23,5],[5,1,5,12],[22,2,23,2],[22,6,23,6],[22,1,23,1],[22,3,23,3],[21,1,21,3],[21,4,21,6],[1,10,1,12],[2,10,2,12],[3,10,3,12],[1,7,1,8],[1,1,3,6]]}
[]
[null,{"$f":"Utilitaire!E8","v":"Plan pour une économie verte 2030"},null,null,null,null,null,"Adaptation",null,null,{"$f":"Accueil!D65 & \" - \" & Accueil!D55","v":"MRIF - 4.2.3.2c"}]
[null,null,null,null,null,null,null,null,null,null,{"$f":"\"Action \" & Accueil!D58","v":"Action en cours"}]
[]
[null,"Conseil de rédaction :",null,null,null,null,null,null,"Informations en date du :",null,null,{"$f":"Utilitaire!G6","v":"2022-09-30"}]
[null,"- Veuillez compléter cet onglet seulement pour les projets en adaptation aux changements climatiques qui sont lancés, le cas échéant"]
[]
[]
[]
[]
[]
[]
[]
[]
[]
[]
[]
[]
[]
[]
[]
[null,"Informations en date du :",null,null,"2022-09-30"]
[null,"Lignes de l'onglet «Détail des projets»","Nom du projet","Étape d'adaptation","Secteur","Aléas climatiques","Commentaires et précisions","Région administrative"]
[null,null,null,null,null,null,null,"(Détail des projets)","Autre(s) région(s) concernées"]
[null,{"$f":"'Détail des projets'!A25+24","v":25},{"$f":"IF(LEN('Détail des projets'!B25)>0,'Détail des projets'!B25,\"\")","v":""},null,null,null,null,{"$f":"IF(LEN('Détail des projets'!H25)>0,'Détail des projets'!H25,\"\")","v":""}]
[null,{"$f":"'Détail des projets'!A26+24","v":26},{"$f":"IF(LEN('Détail des projets'!B26)>0,'Détail des projets'!B26,\"\")","v":""},null,null,null,null,{"$f":"IF(LEN('Détail des projets'!H26)>0,'Détail des projets'!H26,\"\")","v":""}]
[null,27,{"$f":"IF(LEN('Détail des projets'!B27)>0,'Détail des projets'!B27,\"\")","v":"Initiative jeunesse de lutte contre les changements climatiques"},null,null,null,"L'Initiative jeunesse ne vise pas l'adaptation aux effets des changements climatiques.","À l'extérieur du Québec"]
[null,28,{"$f":"IF(LEN('Détail des projets'!B28)>0,'Détail des projets'!B28,\"\")","v":"Initiative jeunesse de lutte contre les changements climatiques"},null,null,null,"L'Initiative jeunesse ne vise pas l'adaptation aux effets des changements climatiques.","À l'extérieur du Québec"]
[null,{"$f":"'Détail des projets'!A29+24","v":29},{"$f":"IF(LEN('Détail des projets'!B37)>0,'Détail des projets'!B37,\"\")","v":""},null,null,null,null,{"$f":"IF(LEN('Détail des projets'!H37)>0,'Détail des projets'!H37,\"\")","v":""}]
[null,{"$f":"'Détail des projets'!A30+24","v":30},{"$f":"IF(LEN('Détail des projets'!B30)>0,'Détail des projets'!B30,\"\")","v":"Participation de 2 jeunes  à la conférence en ligne sur le thème « Agir maintenant, préparer demain: l'urgence climatique francophone »"},null,null,null,null,{"$f":"IF(LEN('Détail des projets'!H30)>0,'Détail des projets'!H30,\"\")","v":"06-Montréal"}]
[null,{"$f":"'Détail des projets'!A31+24","v":31},{"$f":"IF(LEN('Détail des projets'!B31)>0,'Détail des projets'!B31,\"\")","v":"Participation de  16 jeunes au 89e Congrès annuel de l'Acfas dans le cadre de colloques dans le domaine de la lutte contre les changements climatiques. "},null,null,null,null,{"$f":"IF(LEN('Détail des projets'!H31)>0,'Détail des projets'!H31,\"\")","v":"06-Montréal"}]
[null,{"$f":"'Détail des projets'!A32+24","v":32},{"$f":"IF(LEN('Détail des projets'!B32)>0,'Détail des projets'!B32,\"\")","v":"Participation de 14 jeunes  au 5e Congrès mondial en agroforesterie organisé par l'Université Laval."},null,null,null,null,{"$f":"IF(LEN('Détail des projets'!H32)>0,'Détail des projets'!H32,\"\")","v":"03-Capitale-Nationale"}]
[null,{"$f":"'Détail des projets'!A33+24","v":33},{"$f":"IF(LEN('Détail des projets'!B33)>0,'Détail des projets'!B33,\"\")","v":"Participation de 8 jeunes issus des pays visés, aux Écoles d'été en agriculture urbaine du Laboratoire sur l'agriculture urbaine."},null,null,null,null,{"$f":"IF(LEN('Détail des projets'!H33)>0,'Détail des projets'!H33,\"\")","v":"06-Montréal"}]
[null,{"$f":"'Détail des projets'!A34+24","v":34},{"$f":"IF(LEN('Détail des projets'!B34)>0,'Détail des projets'!B34,\"\")","v":""},null,null,null,null,{"$f":"IF(LEN('Détail des projets'!H34)>0,'Détail des projets'!H34,\"\")","v":""}]
[null,{"$f":"'Détail des projets'!A35+24","v":35},{"$f":"IF(LEN('Détail des projets'!B35)>0,'Détail des projets'!B35,\"\")","v":""},null,null,null,null,{"$f":"IF(LEN('Détail des projets'!H35)>0,'Détail des projets'!H35,\"\")","v":""}]
[null,{"$f":"'Détail des projets'!A36+24","v":36},{"$f":"IF(LEN('Détail des projets'!B36)>0,'Détail des projets'!B36,\"\")","v":""},null,null,null,null,{"$f":"IF(LEN('Détail des projets'!H36)>0,'Détail des projets'!H36,\"\")","v":""}]
[null,{"$f":"'Détail des projets'!A37+24","v":37}]
[null,{"$f":"'Détail des projets'!A38+24","v":38},{"$f":"IF(LEN('Détail des projets'!B38)>0,'Détail des projets'!B38,\"\")","v":""},null,null,null,null,{"$f":"IF(LEN('Détail des projets'!H38)>0,'Détail des projets'!H38,\"\")","v":""}]
[null,{"$f":"'Détail des projets'!A39+24","v":39},{"$f":"IF(LEN('Détail des projets'!B39)>0,'Détail des projets'!B39,\"\")","v":""},null,null,null,null,{"$f":"IF(LEN('Détail des projets'!H39)>0,'Détail des projets'!H39,\"\")","v":""}]
[null,{"$f":"'Détail des projets'!A40+24","v":40},{"$f":"IF(LEN('Détail des projets'!B40)>0,'Détail des projets'!B40,\"\")","v":""},null,null,null,null,{"$f":"IF(LEN('Détail des projets'!H40)>0,'Détail des projets'!H40,\"\")","v":""}]
[null,{"$f":"'Détail des projets'!A41+24","v":41},{"$f":"IF(LEN('Détail des projets'!B41)>0,'Détail des projets'!B41,\"\")","v":""},null,null,null,null,{"$f":"IF(LEN('Détail des projets'!H41)>0,'Détail des projets'!H41,\"\")","v":""}]
[null,{"$f":"'Détail des projets'!A42+24","v":42},{"$f":"IF(LEN('Détail des projets'!B42)>0,'Détail des projets'!B42,\"\")","v":""},null,null,null,null,{"$f":"IF(LEN('Détail des projets'!H42)>0,'Détail des projets'!H42,\"\")","v":""}]
[null,{"$f":"'Détail des projets'!A43+24","v":43},{"$f":"IF(LEN('Détail des projets'!B43)>0,'Détail des projets'!B43,\"\")","v":""},null,null,null,null,{"$f":"IF(LEN('Détail des projets'!H43)>0,'Détail des projets'!H43,\"\")","v":""}]
[null,{"$f":"'Détail des projets'!A44+24","v":44},{"$f":"IF(LEN('Détail des projets'!B44)>0,'Détail des projets'!B44,\"\")","v":""},null,null,null,null,{"$f":"IF(LEN('Détail des projets'!H44)>0,'Détail des projets'!H44,\"\")","v":""}]
[null,{"$f":"'Détail des projets'!A45+24","v":45},{"$f":"IF(LEN('Détail des projets'!B45)>0,'Détail des projets'!B45,\"\")","v":""},null,null,null,null,{"$f":"IF(LEN('Détail des projets'!H45)>0,'Détail des projets'!H45,\"\")","v":""}]
[null,{"$f":"'Détail des projets'!A46+24","v":46},{"$f":"IF(LEN('Détail des projets'!B46)>0,'Détail des projets'!B46,\"\")","v":""},null,null,null,null,{"$f":"IF(LEN('Détail des projets'!H46)>0,'Détail des projets'!H46,\"\")","v":""}]
[null,{"$f":"'Détail des projets'!A47+24","v":47},{"$f":"IF(LEN('Détail des projets'!B47)>0,'Détail des projets'!B47,\"\")","v":""},null,null,null,null,{"$f":"IF(LEN('Détail des projets'!H47)>0,'Détail des projets'!H47,\"\")","v":""}]
[null,{"$f":"'Détail des projets'!A48+24","v":48},{"$f":"IF(LEN('Détail des projets'!B48)>0,'Détail des projets'!B48,\"\")","v":""},null,null,null,null,{"$f":"IF(LEN('Détail des projets'!H48)>0,'Détail des projets'!H48,\"\")","v":""}]
[null,{"$f":"'Détail des projets'!A49+24","v":49},{"$f":"IF(LEN('Détail des projets'!B49)>0,'Détail des projets'!B49,\"\")","v":""},null,null,null,null,{"$f":"IF(LEN('Détail des projets'!H49)>0,'Détail des projets'!H49,\"\")","v":""}]
[null,{"$f":"'Détail des projets'!A50+24","v":50},{"$f":"IF(LEN('Détail des projets'!B50)>0,'Détail des projets'!B50,\"\")","v":""},null,null,null,null,{"$f":"IF(LEN('Détail des projets'!H50)>0,'Détail des projets'!H50,\"\")","v":""}]
[null,{"$f":"'Détail des projets'!A51+24","v":51},{"$f":"IF(LEN('Détail des projets'!B51)>0,'Détail des projets'!B51,\"\")","v":""},null,null,null,null,{"$f":"IF(LEN('Détail des projets'!H51)>0,'Détail des projets'!H51,\"\")","v":""}]
[null,{"$f":"'Détail des projets'!A52+24","v":52},{"$f":"IF(LEN('Détail des projets'!B52)>0,'Détail des projets'!B52,\"\")","v":""},null,null,null,null,{"$f":"IF(LEN('Détail des projets'!H52)>0,'Détail des projets'!H52,\"\")","v":""}]
[null,{"$f":"'Détail des projets'!A53+24","v":53},{"$f":"IF(LEN('Détail des projets'!B53)>0,'Détail des projets'!B53,\"\")","v":""},null,null,null,null,{"$f":"IF(LEN('Détail des projets'!H53)>0,'Détail des projets'!H53,\"\")","v":""}]
[null,{"$f":"'Détail des projets'!A54+24","v":54},{"$f":"IF(LEN('Détail des projets'!B54)>0,'Détail des projets'!B54,\"\")","v":""},null,null,null,null,{"$f":"IF(LEN('Détail des projets'!H54)>0,'Détail des projets'!H54,\"\")","v":""}]
[null,{"$f":"'Détail des projets'!A55+24","v":55},{"$f":"IF(LEN('Détail des projets'!B55)>0,'Détail des projets'!B55,\"\")","v":""},null,null,null,null,{"$f":"IF(LEN('Détail des projets'!H55)>0,'Détail des projets'!H55,\"\")","v":""}]
[null,{"$f":"'Détail des projets'!A56+24","v":56},{"$f":"IF(LEN('Détail des projets'!B56)>0,'Détail des projets'!B56,\"\")","v":""},null,null,null,null,{"$f":"IF(LEN('Détail des projets'!H56)>0,'Détail des projets'!H56,\"\")","v":""}]
[null,{"$f":"'Détail des projets'!A57+24","v":57},{"$f":"IF(LEN('Détail des projets'!B57)>0,'Détail des projets'!B57,\"\")","v":""},null,null,null,null,{"$f":"IF(LEN('Détail des projets'!H57)>0,'Détail des projets'!H57,\"\")","v":""}]
[null,{"$f":"'Détail des projets'!A58+24","v":58},{"$f":"IF(LEN('Détail des projets'!B58)>0,'Détail des projets'!B58,\"\")","v":""},null,null,null,null,{"$f":"IF(LEN('Détail des projets'!H58)>0,'Détail des projets'!H58,\"\")","v":""}]
[null,{"$f":"'Détail des projets'!A59+24","v":59},{"$f":"IF(LEN('Détail des projets'!B59)>0,'Détail des projets'!B59,\"\")","v":""},null,null,null,null,{"$f":"IF(LEN('Détail des projets'!H59)>0,'Détail des projets'!H59,\"\")","v":""}]
[null,{"$f":"'Détail des projets'!A60+24","v":60},{"$f":"IF(LEN('Détail des projets'!B60)>0,'Détail des projets'!B60,\"\")","v":""},null,null,null,null,{"$f":"IF(LEN('Détail des projets'!H60)>0,'Détail des projets'!H60,\"\")","v":""}]

{"sheet":"Indicateurs","index":7,"n_rows":292,"n_cols":44,"rows_kept":292,"cut":false,"hidden":false,"merged":[[274,12,274,14],[275,12,275,14],[276,12,276,14],[277,12,277,14],[278,12,278,14],[279,12,279,14],[280,12,280,14],[281,12,281,14],[282,12,282,14],[265,12,265,14],[266,12,266,14],[267,12,267,14],[268,12,268,14],[269,12,269,14],[270,12,270,14],[271,12,271,14],[272,12,272,14],[273,12,273,14],[166,12,166,14],[167,12,167,14],[168,12,168,14],[169,12,169,14],[170,12,170,14],[171,12,171,14],[172,12,172,14],[173,12,173,14],[174,12,174,14],[157,12,157,14],[158,12,158,14],[159,12,159,14],[160,12,160,14],[161,12,161,14],[162,12,162,14],[163,12,163,14],[164,12,164,14],[165,12,165,14],[273,18,273,19],[153,1,154,2],[153,3,154,3],[153,4,154,4],[153,18,153,19],[268,18,268,19],[269,18,269,19],[270,18,270,19],[271,18,271,19],[272,18,272,19],[263,18,263,19],[264,18,264,19],[265,18,265,19],[266,18,266,19],[267,18,267,19],[258,18,258,19],[259,18,259,19],[260,18,260,19],[261,18,261,19],[262,18,262,19],[253,18,253,19],[254,18,254,19],[255,18,255,19],[256,18,256,19],[257,18,257,19],[248,18,248,19],[249,18,249,19],[250,18,250,19],[251,18,251,19],[252,18,252,19],[243,18,243,19],[244,18,244,19],[245,18,245,19],[246,18,246,19],[247,18,247,19],[238,18,238,19],[239,18,239,19],[240,18,240,19],[241,18,241,19],[242,18,242,19],[233,18,233,19],[234,18,234,19],[235,18,235,19],[236,18,236,19],[237,18,237,19],[228,18,228,19],[229,18,229,19],[230,18,230,19],[231,18,231,19],[232,18,232,19],[223,18,223,19],[224,18,224,19],[225,18,225,19],[226,18,226,19],[227,18,227,19],[218,18,218,19],[219,18,219,19],[220,18,220,19],[221,18,221,19],[222,18,222,19],[213,18,213,19],[214,18,214,19],[215,18,215,19],[216,18,216,19],[217,18,217,19],[208,18,208,19],[209,18,209,19],[210,18,210,19],[211,18,211,19],[212,18,212,19],[203,18,203,19],[204,18,204,19],[205,18,205,19],[206,18,206,19],[207,18,207,19],[198,18,198,19],[199,18,199,19],[200,18,200,19],[201,18,201,19],[202,18,202,19],[193,18,193,19],[194,18,194,19],[195,18,195,19],[196,18,196,19],[197,18,197,19],[188,18,188,19],[189,18,189,19],[190,18,190,19],[191,18,191,19],[192,18,192,19],[183,18,183,19],[184,18,184,19],[185,18,185,19],[186,18,186,19],[187,18,187,19],[178,18,178,19],[179,18,179,19],[180,18,180,19],[181,18,181,19],[182,18,182,19],[173,18,173,19],[174,18,174,19],[175,18,175,19],[176,18,176,19],[177,18,177,19],[158,18,158,19],[159,18,159,19],[160,18,160,19],[161,18,161,19],[162,18,162,19],[163,18,163,19],[164,18,164,19],[165,18,165,19],[166,18,166,19],[167,18,167,19],[168,18,168,19],[169,18,169,19],[170,18,170,19],[171,18,171,19],[172,18,172,19],[253,12,253,14],[254,12,254,14],[255,12,255,14],[243,12,243,14],[244,12,244,14],[245,12,245,14],[246,12,246,14],[247,12,247,14],[248,12,248,14],[249,12,249,14],[250,12,250,14],[251,12,251,14],[252,12,252,14],[233,12,233,14],[234,12,234,14],[235,12,235,14],[236,12,236,14],[237,12,237,14],[256,12,256,14],[257,12,257,14],[258,12,258,14],[259,12,259,14],[260,12,260,14],[261,12,261,14],[262,12,262,14],[263,12,263,14],[264,12,264,14],[238,12,238,14],[239,12,239,14],[240,12,240,14],[241,12,241,14],[242,12,242,14],[223,12,223,14],[224,12,224,14],[225,12,225,14],[226,12,226,14],[227,12,227,14],[228,12,228,14],[229,12,229,14],[230,12,230,14],[231,12,231,14],[232,12,232,14],[222,12,222,14],[203,12,203,14],[204,12,204,14],[205,12,205,14],[206,12,206,14],[207,12,207,14],[208,12,208,14],[209,12,209,14],[210,12,210,14],[211,12,211,14],[212,12,212,14],[213,12,213,14],[214,12,214,14],[215,12,215,14],[216,12,216,14],[217,12,217,14],[218,12,218,14],[219,12,219,14],[220,12,220,14],[221,12,221,14],[202,12,202,14],[183,12,183,14],[184,12,184,14],[185,12,185,14],[186,12,186,14],[187,12,187,14],[188,12,188,14],[189,12,189,14],[190,12,190,14],[191,12,191,14],[192,12,192,14],[193,12,193,14],[194,12,194,14],[195,12,195,14],[196,12,196,14],[197,12,197,14],[198,12,198,14],[199,12,199,14],[200,12,200,14],[201,12,201,14],[175,12,175,14],[176,12,176,14],[177,12,177,14],[178,12,178,14],[179,12,179,14],[180,12,180,14],[181,12,181,14],[182,12,182,14],[273,10,273,11],[268,10,268,11],[269,10,269,11],[270,10,270,11],[271,10,271,11],[272,10,272,11],[263,10,263,11],[264,10,264,11],[265,10,265,11],[266,10,266,11],[267,10,267,11],[258,10,258,11],[259,10,259,11],[260,10,260,11],[261,10,261,11],[262,10,262,11],[253,10,253,11],[254,10,254,11],[255,10,255,11],[256,10,256,11],[257,10,257,11],[248,10,248,11],[249,10,249,11],[250,10,250,11],[251,10,251,11],[252,10,252,11],[243,10,243,11],[244,10,244,11],[245,10,245,11],[246,10,246,11],[247,10,247,11],[238,10,238,11],[239,10,239,11],[240,10,240,11],[241,10,241,11],[242,10,242,11],[233,10,233,11],[234,10,234,11],[235,10,235,11],[236,10,236,11],[237,10,237,11],[228,10,228,11],[229,10,229,11],[230,10,230,11],[231,10,231,11],[232,10,232,11],[223,10,223,11],[224,10,224,11],[225,10,225,11],[226,10,226,11],[227,10,227,11],[218,10,218,11],[219,10,219,11],[220,10,220,11],[221,10,221,11],[222,10,222,11],[213,10,213,11],[214,10,214,11],[215,10,215,11],[216,10,216,11],[217,10,217,11],[209,10,209,11],[210,10,210,11],[211,10,211,11],[212,10,212,11],[208,10,208,11],[191,10,191,11],[192,10,192,11],[183,10,183,11],[184,10,184,11],[185,10,185,11],[186,10,186,11],[187,10,187,11],[198,10,198,11],[199,10,199,11],[203,10,203,11],[204,10,204,11],[205,10,205,11],[206,10,206,11],[207,10,207,11],[200,10,200,11],[201,10,201,11],[202,10,202,11],[193,10,193,11],[194,10,194,11],[195,10,195,11],[196,10,196,11],[197,10,197,11],[182,10,182,11],[173,10,173,11],[174,10,174,11],[175,10,175,11],[176,10,176,11],[177,10,177,11],[188,10,188,11],[189,10,189,11],[190,10,190,11],[163,10,163,11],[164,10,164,11],[165,10,165,11],[166,10,166,11],[167,10,167,11],[178,10,178,11],[179,10,179,11],[180,10,180,11],[181,10,181,11],[158,10,158,11],[159,10,159,11],[160,10,160,11],[161,10,161,11],[162,10,162,11],[183,8,183,9],[184,8,184,9],[158,8,158,9],[159,8,159,9],[160,8,160,9],[161,8,161,9],[162,8,162,9],[163,8,163,9],[164,8,164,9],[165,8,165,9],[166,8,166,9],[167,8,167,9],[168,8,168,9],[169,8,169,9],[168,10,168,11],[169,10,169,11],[170,10,170,11],[171,10,171,11],[172,10,172,11],[179,8,179,9],[180,8,180,9],[181,8,181,9],[182,8,182,9],[195,8,195,9],[196,8,196,9],[197,8,197,9],[198,8,198,9],[199,8,199,9],[190,8,190,9],[191,8,191,9],[192,8,192,9],[193,8,193,9],[194,8,194,9],[185,8,185,9],[186,8,186,9],[187,8,187,9],[188,8,188,9],[189,8,189,9],[170,8,170,9],[171,8,171,9],[172,8,172,9],[173,8,173,9],[174,8,174,9],[175,8,175,9],[176,8,176,9],[177,8,177,9],[178,8,178,9],[203,8,203,9],[204,8,204,9],[200,8,200,9],[201,8,201,9],[202,8,202,9],[205,8,205,9],[206,8,206,9],[207,8,207,9],[227,8,227,9],[228,8,228,9],[208,8,208,9],[209,8,209,9],[210,8,210,9],[211,8,211,9],[212,8,212,9],[213,8,213,9],[214,8,214,9],[215,8,215,9],[216,8,216,9],[222,8,222,9],[223,8,223,9],[224,8,224,9],[225,8,225,9],[226,8,226,9],[217,8,217,9],[218,8,218,9],[219,8,219,9],[220,8,220,9],[221,8,221,9],[269,8,269,9],[270,8,270,9],[271,8,271,9],[272,8,272,9],[273,8,273,9],[264,8,264,9],[265,8,265,9],[266,8,266,9],[267,8,267,9],[268,8,268,9],[259,8,259,9],[260,8,260,9],[261,8,261,9],[262,8,262,9],[263,8,263,9],[254,8,254,9],[255,8,255,9],[256,8,256,9],[257,8,257,9],[258,8,258,9],[249,8,249,9],[250,8,250,9],[251,8,251,9],[252,8,252,9],[253,8,253,9],[244,8,244,9],[245,8,245,9],[246,8,246,9],[247,8,247,9],[248,8,248,9],[273,5,273,7],[229,8,229,9],[230,8,230,9],[231,8,231,9],[232,8,232,9],[233,8,233,9],[234,8,234,9],[235,8,235,9],[236,8,236,9],[237,8,237,9],[238,8,238,9],[239,8,239,9],[240,8,240,9],[241,8,241,9],[242,8,242,9],[243,8,243,9],[268,5,268,7],[269,5,269,7],[270,5,270,7],[271,5,271,7],[272,5,272,7],[263,5,263,7],[264,5,264,7],[265,5,265,7],[266,5,266,7],[267,5,267,7],[258,5,258,7],[259,5,259,7],[260,5,260,7],[261,5,261,7],[262,5,262,7],[253,5,253,7],[254,5,254,7],[255,5,255,7],[256,5,256,7],[257,5,257,7],[248,5,248,7],[249,5,249,7],[250,5,250,7],[251,5,251,7],[252,5,252,7],[243,5,243,7],[244,5,244,7],[245,5,245,7],[246,5,246,7],[247,5,247,7],[238,5,238,7],[239,5,239,7],[240,5,240,7],[241,5,241,7],[242,5,242,7],[233,5,233,7],[234,5,234,7],[235,5,235,7],[236,5,236,7],[237,5,237,7],[228,5,228,7],[229,5,229,7],[230,5,230,7],[231,5,231,7],[232,5,232,7],[223,5,223,7],[224,5,224,7],[225,5,225,7],[226,5,226,7],[227,5,227,7],[218,5,218,7],[219,5,219,7],[220,5,220,7],[221,5,221,7],[222,5,222,7],[213,5,213,7],[214,5,214,7],[215,5,215,7],[216,5,216,7],[217,5,217,7],[208,5,208,7],[209,5,209,7],[210,5,210,7],[211,5,211,7],[212,5,212,7],[203,5,203,7],[204,5,204,7],[205,5,205,7],[206,5,206,7],[207,5,207,7],[198,5,198,7],[199,5,199,7],[200,5,200,7],[201,5,201,7],[202,5,202,7],[193,5,193,7],[194,5,194,7],[195,5,195,7],[196,5,196,7],[197,5,197,7],[188,5,188,7],[189,5,189,7],[190,5,190,7],[191,5,191,7],[192,5,192,7],[183,5,183,7],[184,5,184,7],[185,5,185,7],[186,5,186,7],[187,5,187,7],[179,5,179,7],[180,5,180,7],[181,5,181,7],[182,5,182,7],[173,5,173,7],[174,5,174,7],[175,5,175,7],[176,5,176,7],[177,5,177,7],[170,5,170,7],[171,5,171,7],[172,5,172,7],[163,5,163,7],[164,5,164,7],[165,5,165,7],[166,5,166,7],[167,5,167,7],[178,5,178,7],[160,5,160,7],[161,5,161,7],[162,5,162,7],[272,1,272,2],[273,1,273,2],[267,1,267,2],[268,1,268,2],[269,1,269,2],[261,1,261,2],[262,1,262,2],[263,1,263,2],[270,1,270,2],[271,1,271,2],[266,1,266,2],[265,1,265,2],[264,1,264,2],[256,1,256,2],[257,1,257,2],[258,1,258,2],[259,1,259,2],[260,1,260,2],[251,1,251,2],[168,5,168,7],[169,5,169,7],[252,1,252,2],[253,1,253,2],[254,1,254,2],[255,1,255,2],[246,1,246,2],[247,1,247,2],[248,1,248,2],[249,1,249,2],[250,1,250,2],[241,1,241,2],[242,1,242,2],[243,1,243,2],[244,1,244,2],[245,1,245,2],[236,1,236,2],[237,1,237,2],[238,1,238,2],[239,1,239,2],[240,1,240,2],[231,1,231,2],[232,1,232,2],[233,1,233,2],[234,1,234,2],[235,1,235,2],[226,1,226,2],[227,1,227,2],[228,1,228,2],[229,1,229,2],[230,1,230,2],[221,1,221,2],[222,1,222,2],[223,1,223,2],[224,1,224,2],[225,1,225,2],[216,1,216,2],[217,1,217,2],[218,1,218,2],[219,1,219,2],[220,1,220,2],[212,1,212,2],[213,1,213,2],[214,1,214,2],[215,1,215,2],[206,1,206,2],[207,1,207,2],[208,1,208,2],[209,1,209,2],[210,1,210,2],[203,1,203,2],[204,1,204,2],[205,1,205,2],[196,1,196,2],[197,1,197,2],[198,1,198,2],[199,1,199,2],[200,1,200,2],[211,1,211,2],[194,1,194,2],[195,1,195,2],[186,1,186,2],[187,1,187,2],[188,1,188,2],[189,1,189,2],[190,1,190,2],[201,1,201,2],[202,1,202,2],[290,18,290,19],[291,1,291,21],[290,1,290,2],[290,5,290,7],[290,8,290,9],[290,10,290,11],[288,18,288,19],[289,1,289,2],[289,5,289,7],[289,8,289,9],[289,10,289,11],[289,18,289,19],[288,1,288,2],[288,5,288,7],[288,8,288,9],[288,10,288,11],[288,12,288,14],[289,12,289,14],[290,12,290,14],[286,18,286,19],[287,1,287,2],[287,5,287,7],[287,8,287,9],[287,10,287,11],[287,18,287,19],[286,1,286,2],[286,5,286,7],[286,8,286,9],[286,10,286,11],[286,12,286,14],[287,12,287,14],[284,18,284,19],[285,1,285,2],[285,5,285,7],[285,8,285,9],[285,10,285,11],[285,18,285,19],[284,1,284,2],[284,5,284,7],[284,8,284,9],[284,10,284,11],[284,12,284,14],[285,12,285,14],[282,18,282,19],[283,1,283,2],[283,5,283,7],[283,8,283,9],[283,10,283,11],[283,18,283,19],[282,1,282,2],[282,5,282,7],[282,8,282,9],[282,10,282,11],[283,12,283,14],[280,18,280,19],[281,1,281,2],[281,5,281,7],[281,8,281,9],[281,10,281,11],[281,18,281,19],[280,1,280,2],[280,5,280,7],[280,8,280,9],[280,10,280,11],[278,18,278,19],[279,1,279,2],[279,5,279,7],[279,8,279,9],[279,10,279,11],[279,18,279,19],[278,1,278,2],[278,5,278,7],[278,8,278,9],[278,10,278,11],[276,18,276,19],[277,1,277,2],[277,5,277,7],[277,8,277,9],[277,10,277,11],[277,18,277,19],[276,1,276,2],[276,5,276,7],[276,8,276,9],[276,10,276,11],[175,1,175,2],[176,1,176,2],[177,1,177,2],[178,1,178,2],[179,1,179,2],[274,18,274,19],[275,1,275,2],[275,5,275,7],[275,8,275,9],[275,10,275,11],[275,18,275,19],[274,1,274,2],[274,5,274,7],[274,8,274,9],[274,10,274,11],[181,1,181,2],[182,1,182,2],[183,1,183,2],[184,1,184,2],[185,1,185,2],[180,1,180,2],[191,1,191,2],[192,1,192,2],[193,1,193,2],[157,1,157,2],[157,5,157,7],[157,8,157,9],[157,10,157,11],[157,18,157,19],[172,1,172,2],[173,1,173,2],[174,1,174,2],[158,1,158,2],[159,1,159,2],[160,1,160,2],[161,1,161,2],[162,1,162,2],[163,1,163,2],[164,1,164,2],[165,1,165,2],[166,1,166,2],[167,1,167,2],[168,1,168,2],[169,1,169,2],[170,1,170,2],[171,1,171,2],[158,5,158,7],[159,5,159,7],[155,18,155,19],[155,10,155,11],[156,18,156,19],[156,10,156,11],[154,10,154,11],[153,10,153,11],[155,1,155,2],[155,8,155,9],[155,5,155,7],[154,5,154,7],[153,5,153,7],[154,8,154,9],[153,8,153,9],[156,5,156,7],[156,1,156,2],[156,8,156,9],[154,18,154,19],[153,12,154,14],[155,12,155,14],[156,12,156,14],[22,22,23,22],[22,19,23,19],[22,18,23,18],[22,3,23,3],[22,4,23,4],[22,1,23,1],[22,2,23,2],[22,5,23,5],[22,20,23,20],[22,6,23,6],[1,18,1,21],[2,18,2,21],[3,18,3,21],[5,1,5,21],[4,19,4,20],[4,1,4,3],[68,7,68,21],[6,1,6,21],[152,1,152,4],[70,1,72,3],[73,1,75,3],[69,1,69,3],[68,1,68,5],[21,1,21,6],[1,1,3,8],[1,9,1,10],[1,11,1,14],[2,11,2,14],[3,11,3,14],[19,1,19,3],[19,4,19,5]]}
["a"]
[null,{"$f":"Utilitaire!E8","v":"Plan pour une économie verte 2030"},null,null,null,null,null,null,null,"Indicateurs",null,null,null,null,null,null,null,null,{"$f":"Accueil!D65 & \" - \" & Accueil!D55","v":"MRIF - 4.2.3.2c"}]
[null,null,null,null,null,null,null,null,null,null,null,{"$f":"Accueil!D58","v":"en cours"},null,null,null,null,null,null,{"$f":"\"Action \" & Accueil!D58","v":"Action en cours"}]
[null,null,null,null,null,null,null,null,null,null,null,{"$f":"Accueil!D65","v":"MRIF"}]
[null,"Conseils de rédaction :",null,null,null,null,null,null,null,null,null,null,null,null,null,null,null,null,null,"Informations en date du :",null,{"$f":"Utilitaire!G6","v":"2022-09-30"}]
[null,"- Veuillez vérifier que les indicateurs inscrits au tableau de la ligne 22 sont adéquats et que vous serez en mesure d'en fournir les résultats.\n- Vous pouvez nous faire part de vos commentaires en bleu dans la case réservée à cet effet.\n- Le cas échéant, veuillez vérifier et corriger les résultats inscrits au tableau de la ligne 69.                                                                                                                                                                                                                                                                                                                                                                                                                                                                                                                                                                                                                                                                                         "]
[null,"- Pour ajouter de nouveaux indicateurs à votre fiche, veuillez nous faire parvenir une fiche indicateur remplie. Le gabarit de fiche indicateur est disponible au lien ci-contre (Fiche indicateur)."]
[]
[]
[]
[]
[]
[]
[]
[]
[]
[]
[]
[]
[null,"Informations en date du :",null,null,"2022-09-30"]
[]
[null,"INDICATEURS DE PERFORMANCE"]
[null,"Cible","Unité de mesure","Année prévue d'atteinte de la cible","Description de l'indicateur","Type d'indicateur","Finalités des indicateurs","2019-2020","2020-2021","2021-2022","2022-2023","2021-2022","2022-2023","2023-2024","2024-2025","2025-2026","2026-2027","2027-2028","RÉSULTAT À COMPARER AVEC LA CIBLE","Pourcentage d'atteinte de la cible","Pourcentage en électrification","Justification d'écart à la cible"]
[null,null,null,null,null,null,null,"Réel","Réel","Réel","Réel","Prévu","Prévu","Prévu","Prévu","Prévu","Prévu","Prévu",null,null,null,"(adresser tout autre commentaire aux onglets Commentaires ou Validation)"]
[1,100,"%",2027,"Pourcentage d'avancement de l'action","Minimum à atteindre","Atténuation des changements climatiques",null,null,null,0.5,{"$f":"PourcentageAvancementJbf(Utilitaire!F227,'Détail des projets'!U61,1000000*Accueil!$D$67)","v":{"$error":"#VALUE!"}},{"$f":"PourcentageAvancementJbf(Utilitaire!G227,'Détail des projets'!V61,1000000*Accueil!$D$67)","v":{"$error":"#VALUE!"}},{"$f":"PourcentageAvancementJbf(Utilitaire!H227,'Détail des projets'!W61,1000000*Accueil!$D$67)","v":{"$error":"#VALUE!"}},{"$f":"PourcentageAvancementJbf(Utilitaire!I227,'Détail des projets'!X61,1000000*Accueil!$D$67)","v":{"$error":"#VALUE!"}},{"$f":"PourcentageAvancementJbf(Utilitaire!J227,'Détail des projets'!Y61,1000000*Accueil!$D$67)","v":{"$error":"#VALUE!"}},{"$f":"PourcentageAvancementJbf(Utilitaire!K227,'Détail des projets'!Z61,1000000*Accueil!$D$67)","v":{"$error":"#VALUE!"}},{"$f":"PourcentageAvancementJbf(Utilitaire!L227,'Détail des projets'!#REF!,1000000*Accueil!$D$67)","v":{"$error":"#VALUE!"}},null,0.1]
[2,6,"Activité ou outils","2022","Nombre d'activités de renforcement des capacités en entrepreneuriat et économie verte","Minimum à atteindre",null,null,null,null,2,null,null,null,null,null,null,null,2,{"$f":"IF(COUNTA(B26)=1,IF(COUNTA(S26)=1,IF(F26=\"Minimum à atteindre\",IF(B26=0,IF(S26>0,1,0),S26/B26),IF(F26=\"Maximum à ne pas dépasser\",IF(B26=0,IF(S26<0,1,0),IF(S26-B26>0,B26/S26,1)),IF(F26=\"Binaire\",IF(B26=S26,1,0),\"\"))),0),\"\")","v":0.33333333333333331},null,"La nouvelle mouture de l'Initiative jeunesse débute, il est normal qu'il y ait peu d'activités encore puisque les ententes ont été signées respectivement en août et en septembre 2022."]
[3,18,"Activité ou outils","2025","Nombre d'activités de renforcement des capacités en entrepreneuriat et économie verte","Minimum à atteindre",null,null,null,null,2,null,null,null,null,null,null,null,2,{"$f":"IF(COUNTA(B27)=1,IF(COUNTA(S27)=1,IF(F27=\"Minimum à atteindre\",IF(B27=0,IF(S27>0,1,0),S27/B27),IF(F27=\"Maximum à ne pas dépasser\",IF(B27=0,IF(S27<0,1,0),IF(S27-B27>0,B27/S27,1)),IF(F27=\"Binaire\",IF(B27=S27,1,0),\"\"))),0),\"\")","v":0.1111111111111111},null,"La nouvelle mouture de l'Initiative jeunesse débute, il est normal qu'il y ait peu d'activités encore puisque les ententes ont été signées respectivement en août et en septembre 2022."]
[4,30,"Activité ou outils","2027","Nombre d’activités de renforcement des capacités en entrepreunariat et économie verte","Minimum à atteindre",null,null,null,null,2,null,null,null,null,null,null,null,2,6.6666666666666666E-2,null,"La nouvelle mouture de l'Initiative jeunesse débute, il est normal qu'il y ait peu d'activités encore puisque les ententes ont été signées respectivement en août et en septembre 2022."]
[5,270,"Personne formée","2022","Nombre de jeunes du Québec et des pays visés ayant participé à des activités de renforcement des capacités en entrepreneuriat et économie verte","Minimum à atteindre",null,null,null,null,22,null,null,null,null,null,null,null,22,8.1481481481481488E-2,null,"Comme l'IJLCC phase 2 débute, c'est normal qu'il y ait encore peu de personnes formées."]
[6,810,"Personne formée","2025","Nombre de jeunes du Québec et des pays visés ayant participé à des activités de renforcement des capacités en entrepreneuriat et économie verte","Minimum à atteindre",null,null,null,null,22,null,null,null,null,null,null,null,22,2.7160493827160494E-2,null,"Comme l'IJLCC phase 2 débute, c'est normal qu'il y ait encore peu de personnes formées."]
[7,1350,"Personne formée","2027","Nombre de jeunes du Québec et des pays visés ayant participé à des activités de renforcement des capacités en entrepreneuriat et économie verte","Minimum à atteindre",null,null,null,null,22,null,null,null,null,null,null,null,22,1.6296296296296295E-2,null,"Comme l'IJLCC phase 2 débute, c'est normal qu'il y ait encore peu de personnes formées."]
[8,10,"Activité ou outils","2022","Nombre d’activités d’éducation et de sensibilisation aux enjeux climatiques organisées","Minimum à atteindre",null,null,null,null,3,null,null,null,null,null,null,null,3,0.3,null,"La nouvelle mouture de l'Initiative jeunesse débute, il est normal qu'il y ait peu d'activités encore puisque les ententes ont été signées respectivement en août et en septembre 2022."]
[9,30,"Activité ou outils","2025","Nombre d’activités d’éducation et de sensibilisation aux enjeux climatiques organisées","Minimum à atteindre",null,null,null,null,3,null,null,null,null,null,null,null,3,0.1,null,"La nouvelle mouture de l'Initiative jeunesse débute, il est normal qu'il y ait peu d'activités encore puisque les ententes ont été signées respectivement en août et en septembre 2022."]
[10,50,"Activité ou outils","2027","Nombre d’activités d’éducation et de sensibilisation aux enjeux climatiques organisées","Minimum à atteindre",null,null,null,null,3,null,null,null,null,null,null,null,3,0.06,null,"La nouvelle mouture de l'Initiative jeunesse débute, il est normal qu'il y ait peu d'activités encore puisque les ententes ont été signées respectivement en août et en septembre 2022."]
[11,190,"Personne formée","2022","Nombre de jeunes du Québec et des pays visés ayant participé à des activités d'éducation et de sensibilisation aux enjeux climatiques","Minimum à atteindre",null,null,null,null,23,null,null,null,null,null,null,null,23,0.12105263157894737,null,"Comme l'IJLCC phase 2 débute, c'est normal qu'il y ait encore peu de personnes formées."]
[12,570,"Personne formée","2027","Nombre de jeunes du Québec et des pays visés ayant participé à des activités d'éducation et de sensibilisation aux enjeux climatiques","Minimum à atteindre",null,null,null,null,23,null,null,null,null,null,null,null,23,4.0350877192982457E-2,null,"Comme l'IJLCC phase 2 débute, c'est normal qu'il y ait encore peu de personnes formées."]
[13,25,"Activité ou outils","2022","Nombre d'activités de communication et de rayonnement ","Minimum à atteindre",null,null,null,null,15,null,null,null,null,null,null,null,18,0.72,null,"8 publications sur les médias sociaux pour LOJIQ et 5 nouvelles sur le site web de LOJIQ. 1 communiqué sur le site de l'IFDD et 1 publication sur les médias sociaux."]
[14,75,"Activité ou outils","2027","Nombre d'activités de communication et de rayonnement réalisées","Minimum à atteindre",null,null,null,null,15,null,null,null,null,null,null,null,18,0.24,null,"8 publications sur les médias sociaux pour LOJIQ et 5 nouvelles sur le site web de LOJIQ. 1 communiqué sur le site de l'IFDD et 1 publication sur les médias sociaux."]
[15,80,"%","2022","Taux d'appréciation par les jeunes des acquis du programme (nouveaux apprentissages, nouveaux liens professionnels et partage de l'expérience)","Minimum à atteindre",null,null,null,null,90,null,null,null,null,null,null,null,90,1.125,null,"Résultat obtenu au-delà de la cible. "]
[16,80,"%","2027","Taux d'appréciation par les jeunes des acquis du programme (nouveaux apprentissages, nouveaux liens professionnels et partage de l'expérience)","Minimum à atteindre",null,null,null,null,90,null,null,null,null,null,null,null,90,1.125,null,"Résultat obtenu au-delà de la cible. "]
[17,5,"activité","2022","Nombre de partenariats développés et maintenus","Minimum à atteindre",null,null,null,null,1,null,null,null,null,null,null,null,1,0.2,null,"Appel de projets en cours à l'IFDD qui amènera de nouveaux partenariats."]
[18,7,"activité","2027","Nombre de partenariats développés et maintenus","Minimum à atteindre",null,null,null,null,1,null,null,null,null,null,null,null,1,0.14285714285714285,null,"Appel de projets en cours à l'IFDD qui amènera de nouveaux partenariats."]
[19,null,null,null,null,null,null,null,null,null,null,null,null,null,null,null,null,null,null,""]
[20,null,null,null,null,null,null,null,null,null,null,null,null,null,null,null,null,null,null,""]
[21,null,null,null,null,null,null,null,null,null,null,null,null,null,null,null,null,null,null,"",null,null,null,null,null,null,null,null,null,null,null,null,null,null,null,null,null,null,null,null,null,null,null,false]
[]
[]
[]
[]
[]
[]
[]
[]
[]
[]
[]
[]
[]
[]
[]
[]
[]
[]
[]
[]
[]
[]
[]
[null,"PRÉVISIONS DES RETOMBÉES SUR LES RÉDUCTIONS DES ÉMISSIONS DE GES"]
[null,"Niveau de certitude",null,null,"Lieu",2022,2022,2023,2024,2025,2030,2030,2026,2030,2035,2027,2028,2029,2035,2040,2050,"Commentaires sur les résultats"]
[null,"Pérennité des réductions d'émissions de GES réalisées à ce jour \n(T éq. CO2)",null,null,"Au Québec",null,null,null,null,null,null,null,null,null,null,null,null,null,null,null,null,""]
[null,null,null,null,"Hors Québec",null,null,null,null,null,null,null,null,null,null,null,null,null,null,null,null,""]
[null,null,null,null,"Non distingué",null,null,null,null,null,null,null,null,null,null,null,null,null,null,null,null,""]
[null,"Développement du potentiel de réduction des émissions de GES pour le futur \n(T éq. CO2)",null,null,"Au Québec",null,null,null,null,null,null,null,null,null,null,null,null,null,null,null,null,""]
[null,null,null,null,"Hors Québec",null,null,null,null,null,null,null,null,null,null,null,null,null,null,null,null,""]
[null,null,null,null,"Non distingué",null,null,null,null,null,null,null,null,null,null,null,null,null,null,null,null,""]
[]
[]
[]
[]
[]
[]
[]
[]
[]
[]
[]
[]
[]
[]
[]
[]
[]
[]
[]
[]
[]
[]
[]
[]
[]
[]
[]
[]
[]
[]
[]
[]
[]
[]
[]
[]
[]
[]
[]
[]
[]
[]
[]
[]
[]
[]
[]
[]
[]
[]
[]
[]
[]
[]
[]
[]
[]
[]
[]
[]
[]
[]
[]
[]
[]
[]
[]
[]
[]
[]
[]
[]
[]
[]
[]
[]
[null,"ADAPTATION AUX EFFETS DES CHANGEMENTS CLIMATIQUES"]
[null,"Solutions d'adaptation proposées",null,"Lignes concernées de l'onglet Détail des projets","Étape","Ajustements",null,null,"Risques",null,"Effets des changements climatiques",null,"Région",null,null,null,null,null,"Échelle humaine",null,null,"Échelle environnementale"]
[null,null,null,null,null,"La solution agit sur : ",null,null,"afin de protéger : ",null,"de :",null,null,null,null,null,null,null,"(estimation du nombre de personnes desservies)",null,null,"(estimation du nombre d'espèces desservies)"]
[]
[]
[]
[]
[]
[]
[]
[]
[]
[]
[]
[]
[]
[]
[]
[]
[]
[]
[]
[]
[]
[]
[]
[]
[]
[]
[]
[]
[]
[]
[]
[]
[]
[]
[]
[]
[]
[]
[]
[]
[]
[]
[]
[]
[]
[]
[]
[]
[]
[]
[]
[]
[]
[]
[]
[]
[]
[]
[]
[]
[]
[]
[]
[]
[]
[]
[]
[]
[]
[]
[]
[]
[]
[]
[]
[]
[]
[]
[]
[]
[]
[]
[]
[]
[]
[]
[]
[]
[]
[]
[]
[]
[]
[]
[]
[]
[]
[]
[]
[]
[]
[]
[]
[]
[]
[]
[]
[]
[]
[]
[]
[]
[]
[]
[]
[]
[]
[]
[]
[]
[]
[]
[]
[]
[]
[]
[]
[]
[]
[]
[]
[]
[]
[]
[]
[]
[null,"Ajouter une ligne"]

{"sheet":"Commentaires","index":8,"n_rows":27,"n_cols":20,"rows_kept":27,"cut":false,"hidden":true,"merged":[[19,1,19,3],[19,4,19,5],[41,1,41,11],[41,12,41,13],[41,14,41,15],[25,1,25,11],[23,14,23,15],[25,14,25,15],[26,14,26,15],[24,14,24,15],[24,12,24,13],[25,12,25,13],[26,12,26,13],[26,1,26,11],[23,1,23,11],[23,12,23,13],[42,1,42,11],[42,12,42,13],[42,14,42,15],[31,14,31,15],[32,1,32,11],[32,12,32,13],[32,14,32,15],[40,1,40,11],[40,12,40,13],[40,14,40,15],[39,1,39,11],[39,12,39,13],[39,14,39,15],[37,14,37,15],[24,1,24,11],[27,14,27,15],[38,14,38,15],[38,1,38,11],[27,12,27,13],[29,12,29,13],[38,12,38,13],[35,1,35,11],[36,1,36,11],[30,1,30,11],[30,12,30,13],[28,12,28,13],[29,1,29,11],[27,1,27,11],[37,12,37,13],[37,1,37,11],[3,1,3,4],[1,1,2,15],[3,6,3,15],[4,6,4,15],[6,1,6,15],[5,14,5,15],[5,1,5,2],[5,6,5,13],[28,1,28,11],[35,12,35,13],[36,12,36,13],[28,14,28,15],[29,14,29,15],[35,14,35,15],[36,14,36,15],[30,14,30,15],[33,1,33,11],[33,12,33,13],[33,14,33,15],[34,1,34,11],[34,12,34,13],[34,14,34,15],[31,1,31,11],[31,12,31,13]]}
[]
[null,{"$f":"Utilitaire!E8","v":"Plan pour une économie verte 2030"},null,null,null,null,null,null,null,null,null,null,null,null,null,null,null,null,null,"COF"]
[null,null,null,null,null,null,null,null,null,null,null,null,null,null,null,null,null,null,null,"Frais"]
[null,"Commentaires",null,null,null,null,{"$f":"Accueil!D65 & \" - \" & Accueil!D55","v":"MRIF - 4.2.3.2c"},null,null,null,null,null,null,null,null,null,null,null,null,"Détail des projets"]
[null,null,null,null,null,null,{"$f":"\"Action \" & Accueil!D58","v":"Action en cours"},null,null,null,null,null,null,null,null,null,null,null,null,"Détail des projets (GES)"]
[null,"Conseils de rédaction :",null,null,null,null,"Informations en date du :",null,null,null,null,null,null,null,{"$f":"Utilitaire!G6","v":"2022-09-30"},null,null,null,null,"Bilan GES"]
[null,"- Veuillez inscrire ici tout commentaire pertinent.\n- Veuillez inscrire en bleu les commentaires que vous souhaitez ne pas publier.",null,null,null,null,null,null,null,null,null,null,null,null,null,null,null,null,null,"Indicateurs"]
[null,null,null,null,null,null,null,null,null,null,null,null,null,null,null,null,null,null,null,"Toutes-Autre"]
[]
[]
[]
[null,null,null,null,null,null,null,null,null,null,null,null,null,null,null,null,null,null,null,"2013-2014"]
[null,null,null,null,null,null,null,null,null,null,null,null,null,null,null,null,null,null,null,"2014-2015"]
[null,null,null,null,null,null,null,null,null,null,null,null,null,null,null,null,null,null,null,"2015-2016"]
[null,null,null,null,null,null,null,null,null,null,null,null,null,null,null,null,null,null,null,"2016-2017"]
[null,null,null,null,null,null,null,null,null,null,null,null,null,null,null,null,null,null,null,"2017-2018"]
[null,null,null,null,null,null,null,null,null,null,null,null,null,null,null,null,null,null,null,"2018-2019"]
[null,null,null,null,null,null,null,null,null,null,null,null,null,null,null,null,null,null,null,"2019-2020"]
[null,null,null,null,null,null,null,null,null,null,null,null,null,null,null,null,null,null,null,"2020-2021"]
[null,"Informations en date du :",null,null,"2022-09-30",null,null,null,null,null,null,null,null,null,null,null,null,null,null,"2021-2022"]
[null,null,null,null,null,null,null,null,null,null,null,null,null,null,null,null,null,null,null,"2022-2023"]
[null,null,null,null,null,null,null,null,null,null,null,null,null,null,null,null,null,null,null,"2023-2024"]
[]
[null,"Commentaires",null,null,null,null,null,null,null,null,null,null,"Section concernée",null,"Date",null,"Nom du commentateur","Courriel du commentateur"]
[null,null,null,null,null,null,null,null,null,null,null,null,null,null,null,null,""]
[null,null,null,null,null,null,null,null,null,null,null,null,null,null,null,null,""]
[null,null,null,null,null,null,null,null,null,null,null,null,null,null,null,null,""]

{"sheet":"Évaluation","index":9,"n_rows":222,"n_cols":14,"rows_kept":222,"cut":false,"hidden":true,"merged":[[6,1,6,2],[6,3,6,5],[217,3,217,13],[37,12,37,14],[37,1,37,11],[218,2,218,13],[220,2,220,13],[216,2,216,13],[145,1,145,14],[51,10,51,11],[50,1,50,2],[50,3,50,4],[50,5,50,7],[46,1,46,2],[46,3,46,4],[46,5,46,7],[46,8,46,9],[46,10,46,11],[47,1,47,2],[47,3,47,4],[47,5,47,7],[47,8,47,9],[47,10,47,11],[43,5,43,7],[43,8,43,9],[43,10,43,11],[2,1,2,3],[3,2,3,5],[4,2,4,5],[5,1,5,5],[1,7,5,14],[139,1,139,2],[139,3,139,4],[48,1,48,2],[48,3,48,4],[48,5,48,7],[48,8,48,9],[48,10,48,11],[137,1,137,2],[137,3,137,4],[137,5,137,7],[49,3,49,4],[49,5,49,7],[49,8,49,9],[49,10,49,11],[51,1,51,2],[51,3,51,4],[51,5,51,7],[51,8,51,9],[44,1,44,2],[44,3,44,4],[44,5,44,7],[44,8,44,9],[44,10,44,11],[45,1,45,2],[45,3,45,4],[45,5,45,7],[45,8,45,9],[45,10,45,11],[50,8,50,9],[50,10,50,11],[219,2,219,13],[221,2,221,13],[39,1,39,14],[40,1,40,2],[40,3,40,4],[40,5,40,7],[40,8,40,9],[40,10,40,11],[40,13,40,14],[41,1,41,2],[41,3,41,4],[41,5,41,7],[41,8,41,9],[41,10,41,11],[42,1,42,2],[42,3,42,4],[42,5,42,7],[42,8,42,9],[42,10,42,11],[43,1,43,2],[43,3,43,4],[49,1,49,2],[209,2,209,13],[139,5,139,7],[139,8,139,9],[139,10,139,11],[138,1,138,2],[138,3,138,4],[138,5,138,7],[138,8,138,9],[138,10,138,11],[203,1,203,14],[208,9,208,11],[208,3,208,5],[140,1,140,2],[140,3,140,4],[140,5,140,7],[140,8,140,9],[140,10,140,11],[144,1,144,2],[144,3,144,4],[144,5,144,7],[144,8,144,9],[144,10,144,11],[143,1,143,2],[53,1,53,2],[53,3,53,4],[53,5,53,7],[53,8,53,9],[53,10,53,11],[52,1,52,2],[52,3,52,4],[52,5,52,7],[52,8,52,9],[52,10,52,11],[55,1,55,2],[55,3,55,4],[55,5,55,7],[55,8,55,9],[55,10,55,11],[54,1,54,2],[54,3,54,4],[54,5,54,7],[54,8,54,9],[54,10,54,11],[57,1,57,2],[57,3,57,4],[57,5,57,7],[57,8,57,9],[57,10,57,11],[56,1,56,2],[56,3,56,4],[56,5,56,7],[56,8,56,9],[56,10,56,11],[59,1,59,2],[59,3,59,4],[59,5,59,7],[59,8,59,9],[59,10,59,11],[58,1,58,2],[58,3,58,4],[58,5,58,7],[58,8,58,9],[58,10,58,11],[61,1,61,2],[61,3,61,4],[61,5,61,7],[61,8,61,9],[61,10,61,11],[60,1,60,2],[60,3,60,4],[60,5,60,7],[60,8,60,9],[60,10,60,11],[63,1,63,2],[63,3,63,4],[63,5,63,7],[63,8,63,9],[63,10,63,11],[62,1,62,2],[62,3,62,4],[62,5,62,7],[62,8,62,9],[62,10,62,11],[65,1,65,2],[65,3,65,4],[65,5,65,7],[65,8,65,9],[65,10,65,11],[64,1,64,2],[64,3,64,4],[64,5,64,7],[64,8,64,9],[64,10,64,11],[67,1,67,2],[67,3,67,4],[67,5,67,7],[67,8,67,9],[67,10,67,11],[66,1,66,2],[66,3,66,4],[66,5,66,7],[66,8,66,9],[66,10,66,11],[69,1,69,2],[69,3,69,4],[69,5,69,7],[69,8,69,9],[69,10,69,11],[68,1,68,2],[68,3,68,4],[68,5,68,7],[68,8,68,9],[68,10,68,11],[71,1,71,2],[71,3,71,4],[71,5,71,7],[71,8,71,9],[71,10,71,11],[70,1,70,2],[70,3,70,4],[70,5,70,7],[70,8,70,9],[70,10,70,11],[73,1,73,2],[73,3,73,4],[73,5,73,7],[73,8,73,9],[73,10,73,11],[72,1,72,2],[72,3,72,4],[72,5,72,7],[72,8,72,9],[72,10,72,11],[75,1,75,2],[75,3,75,4],[75,5,75,7],[75,8,75,9],[75,10,75,11],[74,1,74,2],[74,3,74,4],[74,5,74,7],[74,8,74,9],[74,10,74,11],[77,1,77,2],[77,3,77,4],[77,5,77,7],[77,8,77,9],[77,10,77,11],[76,1,76,2],[76,3,76,4],[76,5,76,7],[76,8,76,9],[76,10,76,11],[79,1,79,2],[79,3,79,4],[79,5,79,7],[79,8,79,9],[79,10,79,11],[78,1,78,2],[78,3,78,4],[78,5,78,7],[78,8,78,9],[78,10,78,11],[81,1,81,2],[81,3,81,4],[81,5,81,7],[81,8,81,9],[81,10,81,11],[80,1,80,2],[80,3,80,4],[80,5,80,7],[80,8,80,9],[80,10,80,11],[83,1,83,2],[83,3,83,4],[83,5,83,7],[83,8,83,9],[83,10,83,11],[82,1,82,2],[82,3,82,4],[82,5,82,7],[82,8,82,9],[82,10,82,11],[85,1,85,2],[85,3,85,4],[85,5,85,7],[85,8,85,9],[85,10,85,11],[84,1,84,2],[84,3,84,4],[84,5,84,7],[84,8,84,9],[84,10,84,11],[87,1,87,2],[87,3,87,4],[87,5,87,7],[87,8,87,9],[87,10,87,11],[86,1,86,2],[86,3,86,4],[86,5,86,7],[86,8,86,9],[86,10,86,11],[89,1,89,2],[89,3,89,4],[89,5,89,7],[89,8,89,9],[89,10,89,11],[88,1,88,2],[88,3,88,4],[88,5,88,7],[88,8,88,9],[88,10,88,11],[91,1,91,2],[91,3,91,4],[91,5,91,7],[91,8,91,9],[91,10,91,11],[90,1,90,2],[90,3,90,4],[90,5,90,7],[90,8,90,9],[90,10,90,11],[93,1,93,2],[93,3,93,4],[93,5,93,7],[93,8,93,9],[93,10,93,11],[92,1,92,2],[92,3,92,4],[92,5,92,7],[92,8,92,9],[92,10,92,11],[95,1,95,2],[95,3,95,4],[95,5,95,7],[95,8,95,9],[95,10,95,11],[94,1,94,2],[94,3,94,4],[94,5,94,7],[94,8,94,9],[94,10,94,11],[97,1,97,2],[97,3,97,4],[97,5,97,7],[97,8,97,9],[97,10,97,11],[96,1,96,2],[96,3,96,4],[96,5,96,7],[96,8,96,9],[96,10,96,11],[99,1,99,2],[99,3,99,4],[99,5,99,7],[99,8,99,9],[99,10,99,11],[98,1,98,2],[98,3,98,4],[98,5,98,7],[98,8,98,9],[98,10,98,11],[101,1,101,2],[101,3,101,4],[101,5,101,7],[101,8,101,9],[101,10,101,11],[100,1,100,2],[100,3,100,4],[100,5,100,7],[100,8,100,9],[100,10,100,11],[103,1,103,2],[103,3,103,4],[103,5,103,7],[103,8,103,9],[103,10,103,11],[102,1,102,2],[102,3,102,4],[102,5,102,7],[102,8,102,9],[102,10,102,11],[105,1,105,2],[105,3,105,4],[105,5,105,7],[105,8,105,9],[105,10,105,11],[104,1,104,2],[104,3,104,4],[104,5,104,7],[104,8,104,9],[104,10,104,11],[107,1,107,2],[107,3,107,4],[107,5,107,7],[107,8,107,9],[107,10,107,11],[106,1,106,2],[106,3,106,4],[106,5,106,7],[106,8,106,9],[106,10,106,11],[109,1,109,2],[109,3,109,4],[109,5,109,7],[109,8,109,9],[109,10,109,11],[108,1,108,2],[108,3,108,4],[108,5,108,7],[108,8,108,9],[108,10,108,11],[111,1,111,2],[111,3,111,4],[111,5,111,7],[111,8,111,9],[111,10,111,11],[110,1,110,2],[110,3,110,4],[110,5,110,7],[110,8,110,9],[110,10,110,11],[113,1,113,2],[113,3,113,4],[113,5,113,7],[113,8,113,9],[113,10,113,11],[112,1,112,2],[112,3,112,4],[112,5,112,7],[112,8,112,9],[112,10,112,11],[115,1,115,2],[115,3,115,4],[115,5,115,7],[115,8,115,9],[115,10,115,11],[114,1,114,2],[114,3,114,4],[114,5,114,7],[114,8,114,9],[114,10,114,11],[117,1,117,2],[117,3,117,4],[117,5,117,7],[117,8,117,9],[117,10,117,11],[116,1,116,2],[116,3,116,4],[116,5,116,7],[116,8,116,9],[116,10,116,11],[119,1,119,2],[119,3,119,4],[119,5,119,7],[119,8,119,9],[119,10,119,11],[118,1,118,2],[118,3,118,4],[118,5,118,7],[118,8,118,9],[118,10,118,11],[121,1,121,2],[121,3,121,4],[121,5,121,7],[121,8,121,9],[121,10,121,11],[120,1,120,2],[120,3,120,4],[120,5,120,7],[120,8,120,9],[120,10,120,11],[123,1,123,2],[123,3,123,4],[123,5,123,7],[123,8,123,9],[123,10,123,11],[122,1,122,2],[122,3,122,4],[122,5,122,7],[122,8,122,9],[122,10,122,11],[125,1,125,2],[125,3,125,4],[125,5,125,7],[125,8,125,9],[125,10,125,11],[124,1,124,2],[124,3,124,4],[124,5,124,7],[124,8,124,9],[124,10,124,11],[127,1,127,2],[127,3,127,4],[127,5,127,7],[127,8,127,9],[127,10,127,11],[126,1,126,2],[126,3,126,4],[126,5,126,7],[126,8,126,9],[126,10,126,11],[129,1,129,2],[129,3,129,4],[129,5,129,7],[129,8,129,9],[129,10,129,11],[128,1,128,2],[128,3,128,4],[128,5,128,7],[128,8,128,9],[128,10,128,11],[131,1,131,2],[131,3,131,4],[131,5,131,7],[131,8,131,9],[131,10,131,11],[130,1,130,2],[130,3,130,4],[130,5,130,7],[130,8,130,9],[130,10,130,11],[133,1,133,2],[133,3,133,4],[133,5,133,7],[133,8,133,9],[133,10,133,11],[132,1,132,2],[132,3,132,4],[132,5,132,7],[132,8,132,9],[132,10,132,11],[137,8,137,9],[137,10,137,11],[135,1,135,2],[135,3,135,4],[135,5,135,7],[135,8,135,9],[135,10,135,11],[134,1,134,2],[134,3,134,4],[134,5,134,7],[134,8,134,9],[134,10,134,11],[1,1,1,5],[210,1,211,1],[210,2,211,2],[210,3,210,13],[211,3,211,13],[143,3,143,4],[143,5,143,7],[143,8,143,9],[143,10,143,11],[136,1,136,2],[136,3,136,4],[136,5,136,7],[136,8,136,9],[136,10,136,11],[142,1,142,2],[142,3,142,4],[142,5,142,7],[142,8,142,9],[142,10,142,11],[141,1,141,2],[141,3,141,4],[141,5,141,7],[141,8,141,9],[141,10,141,11]]}
[]
[null,{"$f":"Utilitaire!E8","v":"Plan pour une économie verte 2030"},null,null,null,null,null,"\nConseils de rédaction :\n\n- Cet onglet sera pour usage interne seulement, il ne sera pas publié.\n\n"]
[null,{"$f":"\"Action \" & Accueil!D58","v":"Action en cours"}]
[null,{"$f":"Accueil!D55","v":"4.2.3.2c"},{"$f":"Accueil!E55","v":"Soutenir des initiatives québécoises et multilatérales de coopération climatique internationale - Initiative jeunesse de lutte contre les changements climatiques"}]
[null,"Ministère porteur:",{"$f":"Accueil!$D$65","v":"MRIF"}]
[null,"Évaluation"]
[null,"Informations en date du :"]
[]
[]
[]
[]
[]
[]
[]
[]
[]
[]
[]
[]
[]
[]
[]
[]
[]
[]
[]
[]
[]
[]
[]
[]
[]
[]
[]
[]
[]
[]
[null,"Production d'un rapport d'évaluation complet prévu dans le cadre de cette action : "]
[]
[null,"Liste des livrables"]
[null,"Titre du document",null,"Date du document",null,"Type de document",null,null,"Date prévue de transmission au CGFV",null,"Date réelle de transmission au CGFV",null,"Référence","Commentaires"]
[null,null,null,null,null,null,null,null,"2021-01-01",null,"2021-01-01"]
[]
[]
[]
[]
[]
[]
[]
[]
[]
[]
[]
[]
[]
[]
[]
[]
[]
[]
[]
[]
[]
[]
[]
[]
[]
[]
[]
[]
[]
[]
[]
[]
[]
[]
[]
[]
[]
[]
[]
[]
[]
[]
[]
[]
[]
[]
[]
[]
[]
[]
[]
[]
[]
[]
[]
[]
[]
[]
[]
[]
[]
[]
[]
[]
[]
[]
[]
[]
[]
[]
[]
[]
[]
[]
[]
[]
[]
[]
[]
[]
[]
[]
[]
[]
[]
[]
[]
[]
[]
[]
[]
[]
[]
[]
[]
[]
[]
[]
[]
[]
[]
[]
[]
[null,"Ajouter une ligne"]
[]
[]
[]
[]
[]
[]
[]
[]
[]
[]
[]
[]
[]
[]
[]
[]
[]
[]
[]
[]
[]
[]
[]
[]
[]
[]
[]
[]
[]
[]
[]
[]
[]
[]
[]
[]
[]
[]
[]
[]
[]
[]
[]
[]
[]
[]
[]
[]
[]
[]
[]
[]
[]
[]
[]
[]
[]
[null,"Évaluation de l'action par rapport au Plan pour une économie verte 2030"]
[]
[]
[]
[]
[null,null,"Début : ",{"$f":"Accueil!$D$68","v":"2021-04-01"},null,null,null,null,"Fin : ",{"$f":"Accueil!$K$68","v":"2027-03-31"}]
[null,"Résultats attendus : ",{"$f":"IF(LEN(Description!C51)>0,Description!C51,\"\")","v":"•\t Les capacités des jeunes en entrepreneuriat et en économie verte sont renforcées dans les pays visés en vue de permettre l’atténuation des changements climatiques et l’adaptation à ces changements dans ces pays.\n•\t Les jeunes sont sensibilisés aux enjeux de la lutte contre les changements climatiques.\n•\t La mise en réseau et les échanges entre les jeunes sont favorisés.\n•\t La mobilité internationale des jeunes est encouragée.\n•\t L’information sur les enjeux climatiques est diffusée par et pour les jeunes."}]
[null,"Résultats obtenus \n(Cibles, indicateurs et description) : ",{"$f":"IF(COUNTA(Indicateurs!B25:B45)=0,0,AVERAGE(Indicateurs!$T$25:$T$45))","v":0.27279500190806233},{"$f":"IF(LEN(Description!C52)>0,Description!C52,\"\")","v":"L’année 2021-2022 et la première moitié de l’année 2022-2023 ont permis de préparer les ententes avec LOJIQ et l’IFDD. Les deux ententes ont été signées. Seulement quelques activités ont été organisées du côté de LOJIQ. Du côté de l’IFDD, les résultats sont à venir."}]
[null,null,null,{"$f":"IF(LEN(Description!C53)>0,Description!C53,\"\")","v":"45 jeunes du Québec et des pays visés ont participé à l’une ou l’autre des cinq activités organisées par LOJIQ."}]
[]
[]
[]
[]
[null,"Type d'évaluation : "]
[null,"Est-ce que les résultats obtenus dans le cadre de l'action sont satisfaisants?"]
[null,"Quelles sont les améliorations possibles pour le futur?"]
[null,"Quels sont les forces et les points positifs de l'action?"]
[null,"Quelle est votre recommandation quant à la poursuite de cette action? "]
[null,"Autres commentaires"]

{"sheet":"Validation","index":10,"n_rows":63,"n_cols":17,"rows_kept":63,"cut":false,"hidden":true,"merged":[[20,9,20,10],[7,1,7,10],[12,7,12,10],[13,7,13,10],[10,7,10,8],[10,9,10,10],[9,5,9,6],[18,1,18,6],[18,7,18,10],[19,1,19,6],[9,7,9,10],[42,1,42,4],[42,5,42,10],[41,1,41,4],[39,1,39,4],[37,1,37,4],[38,1,38,4],[38,6,38,10],[39,6,39,10],[40,6,40,10],[41,6,41,10],[40,1,40,4],[37,6,37,10],[6,1,6,10],[19,7,19,10],[15,2,15,10],[14,2,14,10],[8,2,8,10],[16,1,16,4],[16,5,16,10],[17,1,17,4],[17,5,17,10],[10,1,10,6],[1,1,3,4],[4,1,4,2],[1,5,1,10],[2,7,2,10],[3,7,3,10],[4,7,4,10],[4,5,4,6],[36,1,36,4],[36,5,36,6],[34,1,34,10],[35,1,35,4],[36,7,36,10],[21,9,21,10],[22,9,22,10],[23,9,23,10],[30,15,30,17],[35,6,35,10],[32,7,32,10],[30,11,30,14],[32,3,32,6],[24,9,24,10],[25,9,25,10],[26,9,26,10],[27,9,27,10],[28,9,28,10],[29,9,29,10],[30,9,30,10],[31,9,31,10]]}
[]
[null,{"$f":"Utilitaire!E8","v":"Plan pour une économie verte 2030"},null,null,null,{"$f":"Accueil!D65 & \" - \" & Accueil!D55","v":"MRIF - 4.2.3.2c"}]
[null,null,null,null,null,null,null,{"$f":"\"Action \" & Accueil!D58","v":"Action en cours"}]
[]
[null,null,null,null,null,"Informations en date du:",null,"2022-09-30"]
[]
[null,"Récapitulatif de votre action"]
[null,"Le tableau ci-dessous présente le sommaire de votre action.  Les cellules qui n'ont pas été remplies sont identifiées en rouge, ce qui indique que la fiche est incomplète. Dans cette situation, veuillez vous rendre à l'onglet concerné afin de completer la fiche de suivi. "]
[null,"Votre action se nomme :",{"$f":"IF(Accueil!E55<>\"\",Accueil!D55 & \" - \" & Accueil!E55,\"\")","v":"4.2.3.2c - Soutenir des initiatives québécoises et multilatérales de coopération climatique internationale - Initiative jeunesse de lutte contre les changements climatiques"}]
[null,"Votre action sera en cours du",{"$f":"IF(Accueil!D68<>0,Accueil!D68,\"\")","v":"2021-04-01"},"au",{"$f":"IF(Accueil!K68<>0,Accueil!K68,\"\")","v":"2027-03-31"},". Votre action est actuellement :",null,{"$f":"IF(Accueil!D58<>0,Accueil!D58,\"\")","v":"en cours"}]
[null,"  __________   __________"]
[null,"Le ministère porteur de votre action est : ",{"$f":"IF(Accueil!D65<>0,Accueil!D65,\"\")","v":"MRIF"},"La direction responsable de votre action est :",null,null,"La référence web de votre action est :"]
[null,null,null,null,null,null,null,{"$f":"IF(Accueil!K65<>0,Accueil!K65,\"\")","v":"Direction de la Francophonie et de la solidarité internationale"}]
[null,null,null,null,null,null,null,{"$f":"IF(Accueil!D75<>0,Accueil!D75,\"\")","v":"https://www.lojiq.org/programmes/initiative-jeunesse-de-lutte-contre-les-changements-climatiques/"}]
[null,"L'objectif de votre action est :",{"$f":"IF(Description!C44<>0,Description!C44,\"\")","v":"Cette action contribue à l'objectif 4.2 - S'engager avec les partenaires dans la transition au Québec et à l'international du Plan de mise en oeuvre (PMO) du PEV 2030. Cette action permettra aussi de (1) Favoriser le renforcement des capacités des jeunes en entrepreneuriat et économie verte en vue de permettre l'atténuation et l'adaptation aux changements climatiques des pays francophones les plus vulnérables aux changements climatiques (volet 1) et de (2) Faciliter l'appropriation et la sensibilisation par les jeunes des enjeux de la lutte contre les changements climatiques en vue d'assurer leur mobilisation en faveur de ceux-ci dans les pays les plus vulnérables aux changements climatiques (volet 2).\nEnfin, cette action permettra de répondre aux engagements du gouvernement du Québec en Francophonie en matière de lutte contre les changements climatiques."}]
[null,"Résultats et co-bénéfices attendus :",{"$f":"IF(Description!C51<>0,Description!C51,\"\")","v":"•\t Les capacités des jeunes en entrepreneuriat et en économie verte sont renforcées dans les pays visés en vue de permettre l’atténuation des changements climatiques et l’adaptation à ces changements dans ces pays.\n•\t Les jeunes sont sensibilisés aux enjeux de la lutte contre les changements climatiques.\n•\t La mise en réseau et les échanges entre les jeunes sont favorisés.\n•\t La mobilité internationale des jeunes est encouragée.\n•\t L’information sur les enjeux climatiques est diffusée par et pour les jeunes."}]
[null,"Les résultats et co-bénéfices obtenus dans la dernière année sont :",null,null,null,"Les résultats et co-bénéfices obtenus depuis le lancement de l'action sont :"]
[null,{"$f":"IF(Description!C52<>0,Description!C52,\"\")","v":"L’année 2021-2022 et la première moitié de l’année 2022-2023 ont permis de préparer les ententes avec LOJIQ et l’IFDD. Les deux ententes ont été signées. Seulement quelques activités ont été organisées du côté de LOJIQ. Du côté de l’IFDD, les résultats sont à venir."},null,null,null,{"$f":"IF(Description!C53<>0,Description!C53,\"\")","v":"45 jeunes du Québec et des pays visés ont participé à l’une ou l’autre des cinq activités organisées par LOJIQ."}]
[null,"Votre potentiel de réduction des GES sur une base annuelle (tonnes éq. CO2) est de :",null,null,null,null,null,{"$f":"IF(GES!F27<>0,GES!F27,\"\")","v":""}]
[null,"Votre action contribue à l'augmenter de la résilience du Québec face à l'aléas climatique suivant : ",null,null,null,null,null,{"$f":"IF(COUNTIF(Adaptation!F27:F1000, Utilitaire!G62)>0, Utilitaire!G62,\"\")","v":""}]
[null,"Vous avez atteint",{"$f":"Indicateurs!T25","v":0.1},"du résultat ciblé de",{"$f":"IF(Indicateurs!B25<>0,Indicateurs!B25,\"\")","v":100},{"$f":"Indicateurs!E25","v":"Pourcentage d'avancement de l'action"},"d'ici ",{"$f":"IF(Indicateurs!D25<>0,Indicateurs!D25,\"\")","v":2027},"Votre appréciation de ce résultat est:",{"$f":"IF(Indicateurs!V25<>0,Indicateurs!V25,\"\")","v":""}]
[null,"Vous avez atteint",{"$f":"Indicateurs!T26","v":0.33333333333333331},"du résultat ciblé de",{"$f":"IF(Indicateurs!B26<>0,Indicateurs!B26,\"\")","v":6},{"$f":"IF(Indicateurs!E26<>0,Indicateurs!E26,\"\")","v":"Nombre d'activités de renforcement des capacités en entrepreneuriat et économie verte"},"d'ici ",{"$f":"IF(Indicateurs!D26<>0,Indicateurs!D26,\"\")","v":"2022"},"Votre appréciation de ce résultat est:",{"$f":"IF(Indicateurs!V26<>0,Indicateurs!V26,\"\")","v":"La nouvelle mouture de l'Initiative jeunesse débute, il est normal qu'il y ait peu d'activités encore puisque les ententes ont été signées respectivement en août et en septembre 2022."}]
[null,"Vous avez atteint",{"$f":"Indicateurs!T27","v":0.1111111111111111},"du résultat ciblé de",{"$f":"IF(Indicateurs!B27<>0,Indicateurs!B27,\"\")","v":18},{"$f":"IF(Indicateurs!E27<>0,Indicateurs!E27,\"\")","v":"Nombre d'activités de renforcement des capacités en entrepreneuriat et économie verte"},"d'ici ",{"$f":"IF(Indicateurs!D27<>0,Indicateurs!D27,\"\")","v":"2025"},"Votre appréciation de ce résultat est:",{"$f":"IF(Indicateurs!V27<>0,Indicateurs!V27,\"\")","v":"La nouvelle mouture de l'Initiative jeunesse débute, il est normal qu'il y ait peu d'activités encore puisque les ententes ont été signées respectivement en août et en septembre 2022."}]
[null,"Vous avez atteint",{"$f":"Indicateurs!T28","v":6.6666666666666666E-2},"du résultat ciblé de",{"$f":"IF(Indicateurs!B28<>0,Indicateurs!B28,\"\")","v":30},{"$f":"IF(Indicateurs!E28<>0,Indicateurs!E28,\"\")","v":"Nombre d’activités de renforcement des capacités en entrepreunariat et économie verte"},"d'ici ",{"$f":"IF(Indicateurs!D28<>0,Indicateurs!D28,\"\")","v":"2027"},"Votre appréciation de ce résultat est:",{"$f":"IF(Indicateurs!V28<>0,Indicateurs!V28,\"\")","v":"La nouvelle mouture de l'Initiative jeunesse débute, il est normal qu'il y ait peu d'activités encore puisque les ententes ont été signées respectivement en août et en septembre 2022."}]
[null,"Vous avez atteint",null,"du résultat ciblé de",{"$f":"IF(Indicateurs!B29<>0,Indicateurs!B29,\"\")","v":270},{"$f":"IF(Indicateurs!E29<>0,Indicateurs!E29,\"\")","v":"Nombre de jeunes du Québec et des pays visés ayant participé à des activités de renforcement des capacités en entrepreneuriat et économie verte"},"d'ici ",{"$f":"IF(Indicateurs!D29<>0,Indicateurs!D29,\"\")","v":"2022"},"Votre appréciation de ce résultat est:"]
[null,"Vous avez atteint",null,"du résultat ciblé de",{"$f":"IF(Indicateurs!B30<>0,Indicateurs!B30,\"\")","v":810},{"$f":"IF(Indicateurs!E30<>0,Indicateurs!E30,\"\")","v":"Nombre de jeunes du Québec et des pays visés ayant participé à des activités de renforcement des capacités en entrepreneuriat et économie verte"},"d'ici ",{"$f":"IF(Indicateurs!D30<>0,Indicateurs!D30,\"\")","v":"2025"},"Votre appréciation de ce résultat est:"]
[null,"Vous avez atteint",null,"du résultat ciblé de",{"$f":"IF(Indicateurs!B31<>0,Indicateurs!B31,\"\")","v":1350},{"$f":"IF(Indicateurs!E31<>0,Indicateurs!E31,\"\")","v":"Nombre de jeunes du Québec et des pays visés ayant participé à des activités de renforcement des capacités en entrepreneuriat et économie verte"},"d'ici ",{"$f":"IF(Indicateurs!D31<>0,Indicateurs!D31,\"\")","v":"2027"},"Votre appréciation de ce résultat est:"]
[null,"Vous avez atteint",null,"du résultat ciblé de",{"$f":"IF(Indicateurs!B32<>0,Indicateurs!B32,\"\")","v":10},{"$f":"IF(Indicateurs!E32<>0,Indicateurs!E32,\"\")","v":"Nombre d’activités d’éducation et de sensibilisation aux enjeux climatiques organisées"},"d'ici ",{"$f":"IF(Indicateurs!D32<>0,Indicateurs!D32,\"\")","v":"2022"},"Votre appréciation de ce résultat est:"]
[null,"Vous avez atteint",null,"du résultat ciblé de",{"$f":"IF(Indicateurs!B33<>0,Indicateurs!B33,\"\")","v":30},{"$f":"IF(Indicateurs!E33<>0,Indicateurs!E33,\"\")","v":"Nombre d’activités d’éducation et de sensibilisation aux enjeux climatiques organisées"},"d'ici ",{"$f":"IF(Indicateurs!D33<>0,Indicateurs!D33,\"\")","v":"2025"},"Votre appréciation de ce résultat est:"]
[null,"Vous avez atteint",null,"du résultat ciblé de",{"$f":"IF(Indicateurs!B34<>0,Indicateurs!B34,\"\")","v":50},{"$f":"IF(Indicateurs!E34<>0,Indicateurs!E34,\"\")","v":"Nombre d’activités d’éducation et de sensibilisation aux enjeux climatiques organisées"},"d'ici ",{"$f":"IF(Indicateurs!D34<>0,Indicateurs!D34,\"\")","v":"2027"},"Votre appréciation de ce résultat est:",null,null,null,null,null,null,1,2]
[null,"Vous avez atteint",null,"du résultat ciblé de",{"$f":"IF(Indicateurs!B35<>0,Indicateurs!B35,\"\")","v":190},{"$f":"IF(Indicateurs!E35<>0,Indicateurs!E35,\"\")","v":"Nombre de jeunes du Québec et des pays visés ayant participé à des activités d'éducation et de sensibilisation aux enjeux climatiques"},"d'ici ",{"$f":"IF(Indicateurs!D35<>0,Indicateurs!D35,\"\")","v":"2022"},"Votre appréciation de ce résultat est:"]
[null,"Vous avez atteint",null,"du résultat ciblé de",{"$f":"IF(Indicateurs!B36<>0,Indicateurs!B36,\"\")","v":570},{"$f":"IF(Indicateurs!E36<>0,Indicateurs!E36,\"\")","v":"Nombre de jeunes du Québec et des pays visés ayant participé à des activités d'éducation et de sensibilisation aux enjeux climatiques"},"d'ici ",{"$f":"IF(Indicateurs!D36<>0,Indicateurs!D36,\"\")","v":"2027"},"Votre appréciation de ce résultat est:"]
[null,"Je/Nous,",{"$f":"IF(Accueil!D72<>0,Accueil!D72,\"\")","v":"Patrice Bachand"}," déclare/déclarons que l'information inscrite à cette fiche est conforme avec l'avancement de l'action (choisir parmi la liste déroulante)",null,null,null,"Oui"]
[]
[null,"Amélioration continue"]
[null,"Question",null,null,null,"Réponse","Commentaires"]
[null,"Est-ce que vous considérez pertinent de maintenir l'information sur les dépenses prévues de l'onglet \"Détail de projet\" ? (choisir parmi la liste déroulante)",null,null,null,"Oui, Non, Incertain"]
[null,"Selon vous, est-ce que la fiche de suivi permet de rendre compte de façon exhaustive de votre action? (choisir parmi la liste déroulante) Si non, qu'est-ce qui pourrait être amélioré à cet effet?",null,null,null,"Oui"]
[null,"Est-ce que des questions posées dans la fiche de suivi vous semblent répétitives? (choisir parmi la liste déroulante) Si oui, lesquelles? ",null,null,null,"Non"]
[null,"Combien de temps (en heures travaillées) avez-vous eu besoin pour remplir votre fiche ? ",null,null,null,4]
[null,"Vous êtes personnellement responsable de remplir les fiches de suivi pour combien d'actions?",null,null,null,1]
[null,"Pour remplir cette fiche de suivi, combien de collègues avez-vous eu besoin de consulter, le cas échéant?",null,null,null,2]
[null,"Avez-vous d'autres commentaires sur le processus général de l'exercice de suivi? "]
[]
[]
[]
[]
[]
[]
[]
[]
[]
[]
[]
[]
[]
[]
[]
["Code de couleur","Onglet concerné","no ligne","Description de la problématique","No d'erreur",null,"Commentaires"]
[null,"Description",null,"Les informations \"Description, objectif, clientèle, critères d'admissibilité, processus de suivi de l'action, résultats attendus, résultats obtenus dans la dernière année, résultats obtenus, finalité, catégorie\" sont manquantes dans l'onglet Description.",18]
[null,"détail des projets",null,"Aucun projet n'est mentionné dans la fiche. Cette situation est acceptable seulement si l'action n'est pas encore lancée (statut non démarrée ou en élaboration).",12]
[null,"GES",null,"Les informations \"Potentiel de réduction des GES, réduction réelle des émissions de GES\" sont manquantes dans l'onglet GES.",18]
[null,"indicateurs",null,"Aucun indicateur n'est inscrit pour cette action. Acceptable seulement si l'action n'est pas démarrée.",20]

{"sheet":"Prochain Exercice-Commentaires","index":11,"n_rows":11,"n_cols":6,"rows_kept":11,"cut":false,"hidden":true,"merged":[[54,3,54,5],[55,3,55,5],[56,3,56,5],[49,3,49,5],[50,3,50,5],[51,3,51,5],[52,3,52,5],[53,3,53,5],[44,3,44,5],[45,3,45,5],[46,3,46,5],[47,3,47,5],[48,3,48,5],[39,3,39,5],[40,3,40,5],[41,3,41,5],[42,3,42,5],[43,3,43,5],[34,3,34,5],[35,3,35,5],[36,3,36,5],[37,3,37,5],[38,3,38,5],[29,3,29,5],[30,3,30,5],[31,3,31,5],[32,3,32,5],[33,3,33,5],[24,3,24,5],[25,3,25,5],[26,3,26,5],[27,3,27,5],[28,3,28,5],[19,3,19,5],[20,3,20,5],[21,3,21,5],[22,3,22,5],[23,3,23,5],[14,3,14,5],[15,3,15,5],[16,3,16,5],[17,3,17,5],[18,3,18,5],[9,3,9,5],[10,3,10,5],[11,3,11,5],[12,3,12,5],[13,3,13,5],[6,1,6,5],[5,14,5,15],[1,1,2,5],[3,1,4,2],[3,4,3,5],[4,4,4,5],[5,1,5,4]]}
[]
[null,{"$f":"Utilitaire!E8","v":"Plan pour une économie verte 2030"}]
[]
[null,null,null,null,{"$f":"Accueil!D65 & \" - \" & Accueil!D55","v":"MRIF - 4.2.3.2c"}]
[null,null,null,null,{"$f":"\"Action \" & Accueil!D58","v":"Action en cours"}]
[null,"Info en date du :",null,null,null,{"$f":"Utilitaire!G6","v":"2022-09-30"}]
[null,"- Veuillez inscrire ici tout commentaire ayant pour objectif  améliorer pour le prochain exercice."]
[]
[]
[null,"Onglet de la fiche","Case","Commentaire"]
[null,"Description","B70","Spécifier les nouvelles étapes de mise en œuvre, SVP."]